Cogmind - Beta 15 *** ADVENTURER MODE // 2025.09.28 @ 09:23:49 // Winter2019/RPGLIKE Player: Gallgagger Result: Establishing Free Derelict Territories! Performance ------------- Evolutions (9) 4500 Regions Visited (35) 7000 Robots Destroyed (1852) 9260 Value Destroyed (110501) 110501 Prototype IDs (195) 3900 Alien Tech Used (4) 800 Bonus (141290) 141290 TOTAL SCORE: 277251 Bonus ------- Triggered High Security 3500 High Alert Combat Kills 63998 Follower Combat Kills 110 Awakened Behemoth Slayer 1000 Entered Garrisons 200 Aligned with FarCom 300 Met Data Miner 300 Met Imprinter 300 Destroyed Z-Imprinter 1000 Met Zhirov 300 Met Warlord at Base 500 MAIN.C Attacked Warlord 500 Warlord Defense Kills 28868 Scanned by Researcher 500 Destroyed Superfortress 15000 Destroyed MAIN.C Guards 500 Met MAIN.C 5000 Destroyed MAIN.C Shell 5000 Destroyed MAIN.C 10000 Met Warlord at Command 2000 Win 3000 Friendly Fire -586 Cogmind --------- Core Integrity 704/850 Matter 550/550 Energy 360/360 System Corruption 5% Temperature Cool (0) Movement Flying (15) Location Free Derelict Territories Parts ------- > --- POWER (2) -------- Zero-point Reactor Concept Zero-point Core > --- PROPULSION (5) --- Experimental Surge Thruster Experimental Surge Thruster Experimental Surge Thruster Concept Fieldthrust Drive (fused) Concept Fieldthrust Drive > --- UTILITY (11) ----- Experimental Heat Sink Concept Dimensional Manipulator Experimental Active Sensor Suite Concept Weapon Articulator Experimental Core Analyzer Experimental Armor Integrity Analyzer Experimental Kinecellerator Experimental Weapon Cycler Graphene Brace Concept Matter Streamer > --- WEAPON (8) ------- XL Autogun Array (fused) XL Autogun Array > --- INVENTORY (4) ---- Protomatter-79 Crosscalibrator Transdimensional Reconstructor Peak State ------------ > --- POWER ------------ Hybrid Graviton Reactor Concept Zero-point Core > --- PROPULSION ------- Experimental Surge Thruster Experimental Surge Thruster Experimental Surge Thruster Concept Fieldthrust Drive Concept Fieldthrust Drive > --- UTILITY ---------- Experimental Heat Sink Concept Dimensional Manipulator Experimental Active Sensor Suite Concept Weapon Articulator Experimental Armor Integrity Analyzer Experimental Kinecellerator Experimental Weapon Cycler Graphene Brace Concept Beam Splitter Concept Matter Streamer > --- WEAPON ----------- XL Autogun Array XL Autogun Array > --- INVENTORY -------- Protomatter Crosscalibrator Transdimensional Reconstructor [Rating: 263] Favorites ----------- Power Light Neutrino Core Engine Ion Engine Power Core Light Neutrino Core Reactor Zionite Light DM Reactor Propulsion Electron Diverter Leg Zionite Composite Leg I Wheel Wheel Hover Unit Zionite Glidesys I Flight Unit Electron Diverter Utility Improved Weapon Cycler Device Improved Weapon Cycler Storage Advanced Energy Well Processor Experimental Armor Integrity Analyzer Protection Zionite Weapon Casing Weapon XL Autogun Array Energy Gun Tachyon Dispersion Ray Energy Cannon Beam Cannon Ballistic Gun XL Autogun Array Ballistic Cannon Compact Linear Accelerator Launcher Gamma Bomb Array Special Weapon Improved Plasma Cutter Impact Weapon Gravity Flail Slashing Weapon Master Tearclaws Piercing Weapon CR-A16's Behemoth Slayer Build | -11 -10 -10 -9 -9 -9 -8 -8 -8 -7 -7 -7 -7 -6 -6 -6 -6 -6 -5 -5 -5 -5 -5 -4 -4 -4 -4 -4 -3 -3 -3 -2 -2 -2 -1 -1 ------- Run | Yrd Mat Min Mat Min Exi Min Mat Gar Fac Low Zio Dee Pro Fac Low Low Dat Pro Fac Upp Upp War Pro Fac Upp Upp Zhi Pro Res Tes Res Qua Frg Acc Com Slots Evolved 22 | 4 3 . 3 . 1 . . . 2 1 . . . 3 . . . 1 1 . . . . 1 . . . . . . 1 . 1 . . Power 1 | 1 . . . . . . . . . . . . . . . . . . . . . . . . . . . . . . . . . . . Propulsion 4 | 1 . . 2 . . . . . 1 . . . . . . . . . . . . . . . . . . . . . . . . . . Utility 10 | 1 2 . 1 . . . . . 1 . . . . 2 . . . . 1 . . . . . . . . . . . 1 . 1 . . Weapon 7 | 1 1 . . . 1 . . . . 1 . . . 1 . . . 1 . . . . . 1 . . . . . . . . . . . Parts Attached 181 | 8 8 2 16 1 13 . 4 . 10 1 1 9 . 8 . . . . 11 1 4 11 . 1 1 . 1 . 1 7 2 5 38 1 16 Power 12 | 2 1 1 . . 2 . . . . . . 1 . . . . . . . . . . . . . . . . . . . . 3 . 2 Engine 2 | 2 . . . . . . . . . . . . . . . . . . . . . . . . . . . . . . . . . . . Core 6 | . 1 1 . . 2 . . . . . . . . . . . . . . . . . . . . . . . . . . . 2 . . Reactor 4 | . . . . . . . . . . . . 1 . . . . . . . . . . . . . . . . . . . . 1 . 2 Propulsion 37 | 2 . . 4 . . . 2 . 7 . . 2 . 6 . . . . 3 . . 1 . . . . 1 . . . . 1 8 . . Treads . | . . . . . . . . . . . . . . . . . . . . . . . . . . . . . . . . . . . . Leg 1 | . . . . . . . . . . . . 1 . . . . . . . . . . . . . . . . . . . . . . . Wheel 2 | 2 . . . . . . . . . . . . . . . . . . . . . . . . . . . . . . . . . . . Hover 1 | . . . . . . . . . . . . 1 . . . . . . . . . . . . . . . . . . . . . . . Flight 33 | . . . 4 . . . 2 . 7 . . . . 6 . . . . 3 . . 1 . . . . 1 . . . . 1 8 . . Utility 86 | 2 2 1 6 1 6 . 2 . 3 1 . 6 . 2 . . . . 7 1 2 7 . 1 . . . . 1 1 1 3 27 . 3 Device 49 | 2 . . . 1 3 . . . 3 1 . 1 . 1 . . . . 4 1 2 3 . 1 . . . . 1 1 . 2 21 . 1 Storage 2 | . . . . . . . . . . . . 1 . . . . . . . . . 1 . . . . . . . . . . . . . Processor 18 | . . . . . 2 . 2 . . . . . . 1 . . . . 2 . . 3 . . . . . . . . 1 . 5 . 2 Hackware . | . . . . . . . . . . . . . . . . . . . . . . . . . . . . . . . . . . . . Protection 17 | . 2 1 6 . 1 . . . . . . 4 . . . . . . 1 . . . . . . . . . . . . 1 1 . . Artifact . | . . . . . . . . . . . . . . . . . . . . . . . . . . . . . . . . . . . . Weapon 46 | 2 5 . 6 . 5 . . . . . 1 . . . . . . . 1 . 2 3 . . 1 . . . . 6 1 1 . 1 11 Energy Gun 7 | 2 1 . . . 1 . . . . . . . . . . . . . . . . 1 . . . . . . . 2 . . . . . Energy Cannon 4 | . 1 . . . . . . . . . . . . . . . . . . . . . . . . . . . . 2 . . . . 1 Ballistic Gun 15 | . 3 . 6 . 3 . . . . . . . . . . . . . . . . . . . . . . . . . . 1 . . 2 Ballistic Cannon 2 | . . . . . . . . . . . . . . . . . . . . . . . . . . . . . . 1 . . . . 1 Launcher 4 | . . . . . . . . . . . . . . . . . . . . . . . . . . . . . . 1 . . . . 3 Special Weapon 4 | . . . . . . . . . . . . . . . . . . . 1 . 1 . . . . . . . . . 1 . . . 1 Impact Weapon 2 | . . . . . . . . . . . . . . . . . . . . . . . . . . . . . . . . . . 1 1 Slashing Weapon 4 | . . . . . 1 . . . . . . . . . . . . . . . 1 . . . 1 . . . . . . . . . 1 Piercing Weapon 4 | . . . . . . . . . . . 1 . . . . . . . . . . 2 . . . . . . . . . . . . 1 Special Melee Weapon . | . . . . . . . . . . . . . . . . . . . . . . . . . . . . . . . . . . . . Unidentified Prototypes 72 | . . . . 1 7 . 1 . 1 . . 7 . 4 . . . . 3 . 1 10 . 1 . . 2 . 1 7 . 5 12 . 9 Parts Lost 4 | . . 1 . . . . 1 . . . . . . . . . . . . . . . . . . . . . . . . . 1 . 1 Power . | . . . . . . . . . . . . . . . . . . . . . . . . . . . . . . . . . . . . Propulsion 1 | . . . . . . . 1 . . . . . . . . . . . . . . . . . . . . . . . . . . . . Utility 3 | . . 1 . . . . . . . . . . . . . . . . . . . . . . . . . . . . . . 1 . 1 Weapon . | . . . . . . . . . . . . . . . . . . . . . . . . . . . . . . . . . . . . Highest Loss Streak 1 | . . 1 . . . . 1 . . . . . . . . . . . . . . . . . . . . . . . . . 1 . 1 To Critical Strikes . | . . . . . . . . . . . . . . . . . . . . . . . . . . . . . . . . . . . . Average Backups 2 | . 1 1 1 2 1 3 2 3 3 2 3 2 3 1 2 2 2 2 2 2 2 1 3 3 3 4 4 4 4 4 3 3 3 3 2 Power . | . . . . . . . . . . . . . . . . . . . . . . . . . . . . . . . . . . . . Propulsion . | . . . . . . . . . . . . . . . . . . . . . . . . . . . . . . . . . . . . Utility 1 | . . 1 1 2 . 1 1 1 1 2 3 2 3 1 2 2 2 2 2 2 2 1 1 1 1 1 1 1 1 1 1 1 2 2 1 Weapon . | . 1 . . . . 2 1 2 1 . . . . . . . . . . . . . 2 2 2 3 3 3 3 3 2 2 . . . Tool/Special . | . . . . . . . . . . . . . . . . . . . . . . . . . . . . . . . . . . . . Unused Backups 13 | . . . . . 6 . . . . . . . . . . . . . . . . . . . . . . . . . . . 2 . 5 Power 7 | . . . . . 3 . . . . . . . . . . . . . . . . . . . . . . . . . . . . . 4 Propulsion 1 | . . . . . . . . . . . . . . . . . . . . . . . . . . . . . . . . . 1 . . Utility 3 | . . . . . 3 . . . . . . . . . . . . . . . . . . . . . . . . . . . . . . Weapon 1 | . . . . . . . . . . . . . . . . . . . . . . . . . . . . . . . . . 1 . . Tool/Special 1 | . . . . . . . . . . . . . . . . . . . . . . . . . . . . . . . . . . . 1 Average Slot Usage (%) 82 | . 100 100 99 100 78 80 80 80 81 80 83 82 83 83 80 80 80 77 81 82 82 81 82 80 79 79 76 79 79 79 83 82 74 73 72 Core 6 | . 8 17 15 14 13 13 13 13 11 11 11 6 5 4 4 4 4 4 4 4 4 4 4 4 4 4 4 4 4 4 4 4 3 3 3 Reactor 2 | . . . . . . . . . . . . 3 5 4 4 4 4 4 4 4 4 4 4 4 4 4 4 4 4 4 4 4 3 3 2 Wheel 2 | . 22 18 1 . . . . . . . . . . . . . . . . . . . . . . . . . . . . . . . . Flight 20 | . . . 27 28 26 26 26 26 27 27 27 26 27 24 23 23 23 22 21 21 21 21 21 20 20 20 20 20 20 20 20 20 19 19 19 Device 21 | . 22 18 15 14 6 6 6 6 11 16 16 15 16 23 23 23 23 22 21 25 25 26 26 25 25 25 25 25 25 25 24 24 28 30 30 Processor 7 | . . . . . . 13 13 13 11 11 11 11 11 9 9 9 9 9 10 8 8 8 8 8 8 8 8 8 8 8 9 12 6 3 6 Protection 6 | . 9 18 15 21 21 13 13 13 10 4 5 5 5 4 4 4 4 4 4 4 4 4 4 4 4 4 4 4 4 4 4 4 3 3 . Ballistic Gun 7 | . 12 27 23 21 5 6 6 6 5 7 6 5 5 4 4 4 4 4 4 4 4 4 4 4 4 4 1 4 4 4 4 4 7 6 6 Slashing Weapon 1 | . . . . . 2 . . . . . . . . . . . . . . . . 4 4 4 7 8 8 8 8 4 4 3 . . . Piercing Weapon 1 | . . . . . . . . . . . 3 5 5 4 4 4 4 4 4 4 4 3 4 4 . . . . . . 1 3 . . . Peak Build Rating 263 | 10 15 17 29 34 86 83 84 79 97 107 107 113 115 139 139 139 139 139 161 166 175 184 182 183 188 188 188 188 191 202 203 213 262 258 263 Average Rating 140 | 5 12 16 25 29 42 83 80 78 91 100 102 107 114 126 139 139 139 139 154 165 168 179 182 182 187 188 154 188 188 185 195 204 234 255 256 On Entrance 132 | . 10 15 17 29 29 83 83 79 79 95 107 101 110 115 139 139 139 139 139 160 166 175 182 182 182 188 188 188 188 188 193 203 209 258 257 Naked Turns . | . . . . . . . . . . . . . . . . . . . . . . . . . . . . . . . . . . . . Heaviest Build 73 | 15 23 21 31 31 43 40 40 40 41 43 43 42 42 44 44 44 44 44 46 48 57 58 58 58 68 68 68 68 68 69 69 70 69 69 73 Greatest Support 91 | 26 26 26 31 31 43 43 45 45 55 52 52 52 52 59 49 49 49 49 53 53 65 65 65 65 70 70 70 70 70 74 74 74 88 85 91 Greatest Overweight (x) 2 | . . . 1 . 1 . . 1 . . . . . 2 . . . . 2 . . . . . . . . . . . . . . . . Average Overweight (x) . | . . . . . . . . . . . . . . . . . . . . . . . . . . . . . . . . . . . . Largest Inventory Capacity 4 | 2 2 2 2 2 3 3 3 3 3 3 3 3 3 3 3 3 3 3 3 3 3 3 3 3 4 4 4 4 4 4 4 4 4 4 4 Average Capacity 3 | 2 2 2 2 2 2 3 3 3 3 3 3 3 3 3 3 3 3 3 3 3 3 3 3 3 3 4 4 4 4 4 4 4 4 4 4 Most Carried 4 | . 2 2 2 2 3 3 3 3 3 3 3 3 3 3 3 3 3 3 3 3 3 3 3 3 4 4 4 4 4 4 4 4 4 4 4 Average Carried 2 | . 1 1 1 2 1 3 2 3 2 2 3 2 3 2 2 3 3 3 2 2 2 1 3 3 3 4 4 4 4 4 3 3 3 3 3 Final Capacity 4 | 2 2 2 2 2 3 3 3 3 3 3 3 3 3 3 3 3 3 3 3 3 3 3 3 3 4 4 4 4 4 4 4 4 4 4 4 Final Carried 4 | . 2 1 2 2 3 3 3 3 3 3 3 3 3 3 3 3 3 3 3 3 3 3 3 3 4 4 4 4 4 4 3 4 4 3 3 Class Distribution -------------------- 33% | Hacker-Sprinter 24% | Hacker-Scout 22% | Scavenger-Scout 6% | Scavenger-Sprinter 5% | Scavenger-Tank 4% | Scavenger-Mutant Dominant Class ---------------- Scavenger-Mutant | -10/Materials Scavenger-Tank | -10/Mines Scavenger-Sprinter | -9/Materials Hacker-Sprinter | -9/Mines Hacker-Sprinter | -9/Exiles Hacker-Sprinter | -8/Mines Hacker-Sprinter | -8/Materials Hacker-Sprinter | -8/Garrison Hacker-Sprinter | -7/Factory Hacker-Sprinter | -7/Lower Caves Hacker-Sprinter | -7/Zion Hacker-Sprinter | -7/Deep Caves Hacker-Sprinter | -6/Proximity Caves Hacker-Sprinter | -6/Factory Hacker-Sprinter | -6/Lower Caves Hacker-Sprinter | -6/Lower Caves Hacker-Sprinter | -6/Data Miner Hacker-Sprinter | -5/Proximity Caves Scavenger-Sprinter | -5/Factory Scavenger-Scout | -5/Upper Caves Scavenger-Scout | -5/Upper Caves Scavenger-Scout | -5/Warlord Scavenger-Scout | -4/Proximity Caves Scavenger-Scout | -4/Factory Scavenger-Scout | -4/Upper Caves Scavenger-Scout | -4/Upper Caves Scavenger-Scout | -4/Zhirov Scavenger-Scout | -3/Proximity Caves Scavenger-Scout | -3/Research Hacker-Scout | -3/Testing Hacker-Scout | -2/Research Hacker-Scout | -2/Quarantine Hacker-Scout | -2/Protoforge Hacker-Scout | -1/Access Hacker-Scout | -1/Command Resources | -11 -10 -10 -9 -9 -9 -8 -8 -8 -7 -7 -7 -7 -6 -6 -6 -6 -6 -5 -5 -5 -5 -5 -4 -4 -4 -4 -4 -3 -3 -3 -2 -2 -2 -1 -1 ----------- Run | Yrd Mat Min Mat Min Exi Min Mat Gar Fac Low Zio Dee Pro Fac Low Low Dat Pro Fac Upp Upp War Pro Fac Upp Upp Zhi Pro Res Tes Res Qua Frg Acc Com Matter Collected 62670 | 280 164 192 1057 80 554 105 920 1010 1232 772 18 625 565 4770 375 645 . 396 4712 410 616 6940 270 5115 521 450 20 690 105 720 2295 1049 13334 1790 9873 Remotely 54597 | . . . . . . . . . 145 493 . . . 4055 375 645 . 396 4691 410 616 6910 270 5100 521 450 20 690 105 720 2295 1049 13027 1790 9824 Salvage Created 106214 | 182 916 520 3067 138 339 57 1778 1373 2339 408 . 945 684 7040 378 1302 . 678 8077 755 641 11706 749 10284 550 419 278 1447 149 796 5035 1461 20456 2211 19056 Parts 5378 | 13 66 16 183 4 65 12 116 101 149 15 . 63 48 462 24 60 . 43 419 41 31 455 34 476 36 46 1 66 12 55 228 68 1040 136 794 Haulers Intercepted 26 | . 2 . 4 . . . 1 . 3 . . . . 3 . . . . 5 . . . . 5 . . . . . . 2 . . 1 . Recyclers Shooed 4 | 1 . . . . . . . . . . . . . 1 . . . . 1 . . . . 1 . . . . . . . . . . . Parts Field Recycled . | . . . . . . . . . . . . . . . . . . . . . . . . . . . . . . . . . . . . Retrieved Matter . | . . . . . . . . . . . . . . . . . . . . . . . . . . . . . . . . . . . . Parts Self-Destructed 396 | . . . . . . . . . . 13 . . 48 . 24 48 . 46 . 43 19 . 32 . 33 23 1 66 . . . . . . . Prevented . | . . . . . . . . . . . . . . . . . . . . . . . . . . . . . . . . . . . . Kills | -11 -10 -10 -9 -9 -9 -8 -8 -8 -7 -7 -7 -7 -6 -6 -6 -6 -6 -5 -5 -5 -5 -5 -4 -4 -4 -4 -4 -3 -3 -3 -2 -2 -2 -1 -1 ------- Run | Yrd Mat Min Mat Min Exi Min Mat Gar Fac Low Zio Dee Pro Fac Low Low Dat Pro Fac Upp Upp War Pro Fac Upp Upp Zhi Pro Res Tes Res Qua Frg Acc Com Combat Hostiles Destroyed 1666 | . 28 16 55 2 5 7 33 37 43 4 . 18 24 135 7 27 . 19 133 17 14 227 11 135 16 12 . 23 1 14 62 15 264 33 229 Melee 5 | . . . . . 5 . . . . . . . . . . . . . . . . . . . . . . . . . . . . . . Guns 1608 | . 6 16 55 2 . 7 33 37 43 4 . 18 23 131 6 27 . 18 127 16 14 216 10 133 16 12 . 23 1 14 59 15 264 33 229 Cannons 16 | . 16 . . . . . . . . . . . . . . . . . . . . . . . . . . . . . . . . . . AOE 14 | . 4 . . . . . . . . . . . . 3 . . . . 5 . . 1 . 1 . . . . . . . . . . . Classes Destroyed 39 | 2 4 3 5 . 2 . 1 2 . 1 . 1 1 3 . 1 . . 2 . . 3 . . . . . . . . . 1 6 1 . Worker 46 | . . 2 1 . . . 1 . 2 . . . . 6 . . . . 12 . . . . 9 . . . . . . 5 . 3 1 4 Builder 15 | . . 1 . . . . . . . . . . . . . . . . 3 . . . . 3 . . . . . . 4 2 2 . . Tunneler 10 | 4 1 . 1 . . . . . . . . . . . . . . . 1 . . . . 3 . . . . . . . . . . . Hauler 26 | . 2 . 4 . . . 1 . 3 . . . . 3 . . . . 5 . . . . 5 . . . . . . 2 . . 1 . Recycler 11 | 1 . 1 3 . . . . . . . . . . 2 . . . . . . . . . 2 . . . . . . 1 . . . 1 Carrier 12 | . . . . . . . . . . . . . . . . . . . . . . . . . . . . . . . . . 4 . 8 Minesweeper 5 | . . . . . . . . . . 1 . . . . 1 . . 2 . . . . . . 1 . . . . . . . . . . Mechanic 19 | . . . . . . . . . . . . . . 4 . 1 . . . . . 3 . . . . . . . . . . 6 . 5 Operator 28 | . . . 1 . . . 4 . . . . . . 6 . . . . 4 . . . . 6 . . . . . . . 1 3 . 3 Drone 11 | . . . . . . . . . . . . . 2 . . . . . . . . . . . . . . . . . . . 7 2 . Turret 1 | . . . . . 1 . . . . . . . . . . . . . . . . . . . . . . . . . . . . . . Watcher 73 | . 3 . 4 . . . 5 2 5 . . . . 4 . . . . 10 . . . . 11 . . . . 1 2 5 3 7 5 6 Swarmer 179 | . 6 . 3 . . 4 . 7 7 . . . 12 7 2 5 . 11 18 6 2 21 4 18 5 . . 9 . 1 10 4 4 4 9 Cutter 4 | . . . . . . . . . . . . . . . . . . . . . . . . . . . . . . . . . . 4 . Saboteur 34 | . . . . . . . . . . . . . . 5 . . . . 5 . . 2 . 4 . . . . . . . . 9 . 9 Grunt 622 | . 22 5 39 2 . 3 21 15 22 3 . . 5 61 2 9 . 4 47 5 5 84 3 53 4 6 . 7 . 4 26 6 66 6 87 Brawler 72 | . . . 1 . . . . 3 . . . . 1 5 1 2 . . 9 . . 13 . 5 1 . . . . 1 . . 14 . 16 Duelist 65 | . . . 1 . . . 1 3 . 1 . . 1 8 . 4 . . 5 . . 9 1 7 . 1 . . . 1 . 1 14 1 6 Protector 53 | . . . 1 . . . . . . . . . . 4 . . . . 6 . . 12 . 1 . . . . . . . . 12 . 17 Researcher 7 | . . . . . . . . . . . . . . . . . . . . . . . . . . . . . . . . . 7 . . Sentry 132 | . . . 10 . . . 10 3 12 . . . 2 11 1 1 . 1 13 2 1 . 1 26 1 . . 2 . 2 4 1 20 3 5 Demolisher 8 | . . . . . . . . . . . . . . . . . . . 3 . . 2 . . . . . . . . . . . 1 2 Specialist 12 | . . . . . . . . . . . . . . . . . . . 3 . . 5 . . . . . . . . . . 1 . 3 Hunter 120 | . . . . . . . 1 1 . . . . . 23 . 1 . . 11 2 1 20 . 10 . . . 4 . . 9 . 15 6 16 Programmer 135 | . . . . . . . . 3 2 . . . . 9 . . . 2 9 1 . 23 1 8 2 . . . . 5 5 2 41 1 21 Heavy 10 | . . . . . . . . . . . . . . 1 . . . . 3 . . . . 2 . . . . 1 . . . . 1 2 Q-Series 2 | . . . . . . . . . . . . . . . . . . . . . . . . . . . . . . . . . . 2 . Behemoth 35 | . . . . . . . . 2 . . . . 1 1 1 . . 1 1 1 . 13 1 1 . . . 1 . . 4 . 1 2 4 M Guard 2 | . . . . . . . . . . . . . . . . . . . . . . . . . . . . . . . . . . . 2 Hotshot 19 | . . . . . . . . . . . . . . . . . . . . . . . . . . . . . . . . . 19 . . Decapitator 7 | . . . . . . . . . . . . . . . . . . . . . . . . . . . . . . . . . 7 . . Immortal 4 | . . . . . . . . . . . . . . . . . . . . . . . . . . . . . . . . . 4 . . Overlord 1 | . . . . . . . . . . . . . . . . . . . . . . . . . . . . . . . . . 1 . . Combat Programmer 2 | . . . . . . . . . . . . . . . . . . . . . . . . . . . . . . . . . . . 2 Investigator 2 | . . . . . . . . . . . . . . . . . . . . . . . . . . . . . . . . . 1 . 1 Striker 30 | . . . . . . . . . . . . . . . . . . . . . . 12 . . . . . . . . 2 . 4 . 12 Executioner 37 | . . . . . . . . . . . . . . . . . . . . . . 12 . . . . . . . . 2 . 10 . 13 Alpha 7 6 | . . . . . . . . . . . . . . . . . . . . . . . . . . . . . . . . . 4 . 2 Fortress 1 | . . . . . . . . . . . . . . . . . . . . . . . . . . . . . . . . 1 . . . V-Series 10 | . . . . . . . . . . . . . . . . . . . . . . . . . . . . . . . . . 10 . . Zionite 8 | . . . . . 8 . . . . . . . . . . . . . . . . . . . . . . . . . . . . . . Z-Technician 5 | . . . . . . . . . . . . 5 . . . . . . . . . . . . . . . . . . . . . . . Z-Light 11 | . . . . . . . . . . . . 11 . . . . . . . . . . . . . . . . . . . . . . . Decomposer 2 | . . . . . . . . . . 2 . . . . . . . . . . . . . . . . . . . . . . . . . Tinkerer 1 | . . . . . . . . . . . . . . . . . . . . . . . . . . . . . . . . . 1 . . Thief 1 | . . . . . . . . . . . . . . . . 1 . . . . . . . . . . . . . . . . . . . Master Thief 13 | . . . . . . . . . . . . . . . . . . . . . 5 . . . 3 5 . . . . . . . . . Assembled 21 | . . 11 . . 4 . . . . . . 6 . . . . . . . . . . . . . . . . . . . . . . . Thug 1 | . . . . . . . . . . . . . . . . 1 . . . . . . . . . . . . . . . . . . . Savage 3 | . . . . . . . . . . . . . . . . 3 . . . . . . . . . . . . . . . . . . . Mutant 1 | . . . . . . . . . . . . . . . . . . . . . . 1 . . . . . . . . . . . . . Best Kill Streak 59 | 5 5 7 9 4 8 7 13 11 17 4 . 15 12 30 6 10 . 19 24 12 5 34 5 59 11 5 . 12 2 5 24 10 54 23 29 Combat Bots Only 50 | . 5 5 9 2 4 7 9 11 16 4 . 15 12 27 6 10 . 17 16 12 5 33 5 36 10 5 . 12 1 4 20 8 50 21 29 Max Kills in Single Turn 5 | 2 2 1 2 2 1 2 2 2 2 1 . 5 2 3 2 2 . 2 5 2 2 3 1 4 3 1 . 3 1 2 2 3 4 3 5 Gunslinging 2 | . . . 1 1 . . . . . . . . . . . . . . . . . . . . . . . . . . . 1 2 . 2 Exploded 5 | . 2 . . . . . . . . . . . . 2 . . . . 5 . . 1 . 1 . . . . . . . . . . . Melee 1 | . . . . . 1 . . . . . . . . . . . . . . . . . . . . . . . . . . . . . . Uniques/NPCs Destroyed 7 | . . . . . 4 . . . . . . 1 . . . . . . . . . . . . . . . . . . . . 1 . 1 8R-AWN (-9/Exiles) EX-DEC (-9/Exiles) EX-HEX (-9/Exiles) EX-BIN (-9/Exiles) Z-Imprinter (-7/Deep Caves) Superfortress (-2/Protoforge) MAIN.C Shell (-1/Command) Combat | -11 -10 -10 -9 -9 -9 -8 -8 -8 -7 -7 -7 -7 -6 -6 -6 -6 -6 -5 -5 -5 -5 -5 -4 -4 -4 -4 -4 -3 -3 -3 -2 -2 -2 -1 -1 -------- Run | Yrd Mat Min Mat Min Exi Min Mat Gar Fac Low Zio Dee Pro Fac Low Low Dat Pro Fac Upp Upp War Pro Fac Upp Upp Zhi Pro Res Tes Res Qua Frg Acc Com Hostile Shots Fired 1821 | . 72 59 144 3 36 4 18 28 49 1 . 9 20 158 4 18 . 12 146 24 21 182 3 146 12 10 . 38 5 10 118 17 244 28 182 Missed 797 | . 16 11 61 1 7 3 8 11 31 . . 7 6 84 2 7 . 5 74 8 9 72 1 69 5 5 . 14 1 5 62 9 100 9 94 Hits 1024 | . 56 48 83 2 29 1 10 17 18 1 . 2 14 74 2 11 . 7 72 16 12 110 2 77 7 5 . 24 4 5 56 8 144 19 88 Melee 16 | . . 6 . . 2 . . . . . . . . . . . . . . . 5 . . 1 . . . . . . . . 2 . . Projectile 1008 | . 56 42 83 2 27 1 10 17 18 1 . 2 14 74 2 11 . 7 72 16 7 110 2 76 7 5 . 24 4 5 56 8 142 19 88 AOE 9 | . . 4 . . . . . . . . . . . . . . . . . . . . . . . . . . . . . . 4 . 1 Critical Strikes 69 | . 1 . 3 . 10 . . 2 . . . . 1 . . 2 . 1 5 1 . 9 . 7 . . . . . . . . 23 . 4 Actively Blocked 52 | . . . . . . . . . . . . . . . . 2 . 1 5 1 . 9 . 7 . . . . . . . . 23 . 4 Part Disruptions 3 | . . . . . . . 1 . . . . . . . . . . . . . . . . . . . . . . . . . . . 2 Damage Taken 16989 | . 480 704 788 18 537 9 121 205 304 11 . 42 214 1095 35 149 . 98 1106 194 96 2302 41 1151 105 71 . 368 55 149 1086 157 3237 364 1697 Core 7900 | . 364 483 525 13 320 7 64 154 197 8 . 32 70 434 19 75 . 36 519 80 20 1060 . 409 14 . . 136 43 48 231 90 1312 65 1072 Absorbed by Shields 34 | . . . . . . . . 7 . . . . . . . . . . . . . . . . . . . . . . . . 16 . 11 Redirected to Core 6167 | . 261 366 442 13 273 7 54 115 184 8 . 32 31 366 19 39 . 36 387 67 20 730 . 328 14 . . 70 43 48 177 55 1042 38 902 Redirected to Shielding 6794 | . . . . . . . . . . . . . 135 553 11 62 . 51 477 94 70 1046 41 642 87 71 . 211 . 87 806 52 1639 288 371 Ignored by Resistances 6389 | . 151 197 293 9 188 4 47 76 108 4 . 16 80 402 13 56 . 34 397 69 36 827 15 424 40 26 . 136 21 48 377 54 1139 126 976 Regen/Repaired (Parts) 20 | . . . 20 . . . . . . . . . . . . . . . . . . . . . . . . . . . . . . . . Core Remaining (%) 94 | 100 . 61 . . . 100 . 100 . . . . 98 . . . . 100 . . . . 100 . . . . 100 . 100 . . 100 . 82 Volleys Fired 3332 | 10 79 59 136 2 15 7 58 66 75 30 . 33 33 304 25 43 . 26 305 27 36 443 18 340 32 30 . 44 5 42 147 46 427 59 330 Largest 3 | 2 3 3 3 3 2 1 1 1 1 1 . 1 1 1 1 1 . 1 1 1 1 1 1 1 1 1 . 1 1 2 2 2 2 2 2 Hottest 140 | 80 100 60 69 69 60 60 60 60 60 60 . 60 60 60 60 60 . 60 60 60 60 60 60 60 60 60 . 60 60 140 140 140 120 120 120 Shots Fired 4635 | 20 165 177 408 6 25 7 58 66 75 31 . 33 33 304 25 43 . 26 305 27 36 443 18 340 32 30 . 44 5 43 148 65 840 118 639 Gun 4554 | 20 107 177 408 6 25 7 58 66 75 31 . 33 33 304 25 43 . 26 305 27 36 443 18 340 32 30 . 44 5 43 148 65 840 118 616 Cannon 58 | . 58 . . . . . . . . . . . . . . . . . . . . . . . . . . . . . . . . . . Launcher 23 | . . . . . . . . . . . . . . . . . . . . . . . . . . . . . . . . . . . 23 Special . | . . . . . . . . . . . . . . . . . . . . . . . . . . . . . . . . . . . . Kinetic 4504 | . 84 177 408 6 25 7 58 66 75 31 . 33 33 304 25 43 . 26 305 27 36 443 18 340 32 30 . 44 5 40 147 62 840 118 616 Thermal 85 | 10 75 . . . . . . . . . . . . . . . . . . . . . . . . . . . . . . . . . . Explosive 5 | . . . . . . . . . . . . . . . . . . . . . . . . . . . . . . . . . . . 5 Electromagnetic 41 | 10 6 . . . . . . . . . . . . . . . . . . . . . . . . . . . . 3 1 3 . . 18 Robot Hit Streak 113 | 10 25 31 78 84 8 17 50 41 50 28 . 13 23 40 17 46 . 29 60 17 53 84 11 53 20 22 . 31 8 27 39 27 113 42 86 Robot Miss Streak 10 | 2 4 2 1 . 2 2 2 2 3 1 . 4 2 3 1 2 . 2 3 3 2 3 2 3 3 3 . 2 2 3 3 2 10 2 2 Penetration Max . | . . . . . . . . . . . . . . . . . . . . . . . . . . . . . . . . . . . . Secondary Targets 133 | . . 4 8 1 . . . . . . . . . . . . . . . . . . . . . . . . . . . 2 63 2 53 Max Gunslinging Chain 1 | . . 1 1 1 . . . . . . . . . . . . . . . . . . . . . . . . . . . 1 1 1 1 Shots Hit Robots 3947 | 15 110 140 334 6 57 7 56 57 69 14 . 31 36 256 10 34 . 25 265 23 30 444 14 256 31 32 13 40 4 29 145 52 712 79 521 Core Hits 4141 | 6 52 63 136 3 20 10 63 59 75 14 . 38 32 292 13 47 . 28 315 28 29 466 19 317 26 25 9 45 5 36 151 64 847 91 717 Critical Kills 6 | . 2 . 1 . 3 . . . . . . . . . . . . . . . . . . . . . . . . . . . . . . Critical Parts Destroyed 8 | . . 2 4 . 2 . . . . . . . . . . . . . . . . . . . . . . . . . . . . . . Critical Strikes 20 | . 2 2 6 . 8 . . . . . . . 1 . . . . . . . . . . . . . . . . . 1 . . . . Meltdown 2 | . 2 . . . . . . . . . . . . . . . . . . . . . . . . . . . . . . . . . . Destroy 13 | . . 2 6 . 5 . . . . . . . . . . . . . . . . . . . . . . . . . . . . . . Sever 3 | . . . . . 3 . . . . . . . . . . . . . . . . . . . . . . . . . . . . . . Impale 2 | . . . . . . . . . . . . . 1 . . . . . . . . . . . . . . . . . 1 . . . . Melee Attacks 104 | . . . . . 42 . . . . . . . 4 3 1 . . 1 1 1 . 16 1 1 . 2 13 . . . 13 1 . 4 . Impact 4 | . . . . . . . . . . . . . . . . . . . . . . . . . . . . . . . . . . 4 . Slashing 66 | . . . . . 42 . . . . . . . . . . . . . . . . 7 . . . 2 13 . . . 2 . . . . Piercing 34 | . . . . . . . . . . . . . 4 3 1 . . 1 1 1 . 9 1 1 . . . . . . 11 1 . . . Sneak Attacks 8 | . . . . . . . . . . . . . . . . . . . . . . 5 . . . . . . . . 3 . . . . Combat Hostiles 1 | . . . . . . . . . . . . . . . . . . . . . . 1 . . . . . . . . . . . . . Follow-up Attacks 1 | . . . . . . . . . . . . . . . . . . . . . . . . . . 1 . . . . . . . . . Damage Inflicted 352974 | 197 1631 1100 3891 91 2420 438 3832 4578 5023 955 . 4041 2384 23399 705 4126 . 1749 26932 1780 3008 46925 981 27998 2832 2510 172 3807 396 3163 14149 4785 81830 10292 60854 Guns 341394 | 197 669 1100 3891 91 251 438 3809 4578 5023 955 . 1891 2247 22249 705 4126 . 1749 24464 1780 3008 46642 981 26247 2832 2499 . 3807 396 3067 13941 4785 81830 10292 60854 Cannons 841 | . 841 . . . . . . . . . . . . . . . . . . . . . . . . . . . . . . . . . . Explosions 7967 | . 121 . . . . . 23 . . . . 2150 . 1150 . . . . 2468 . . 208 . 1751 . . . . . 96 . . . . . Melee 2772 | . . . . . 2169 . . . . . . . 137 . . . . . . . . 75 . . . 11 172 . . . 208 . . . . Ramming . | . . . . . . . . . . . . . . . . . . . . . . . . . . . . . . . . . . . . Kinetic 340826 | . 407 1100 3891 91 251 438 3809 4578 5023 955 . 1891 2247 22249 705 4126 . 1749 24464 1780 3008 46642 981 26247 2832 2499 . 3807 396 2985 13941 4758 81830 10292 60854 Thermal 7321 | 81 1164 . . . . . . . . . . 2150 . 1036 . . . . 1696 . . . . 1098 . . . . . 96 . . . . . Explosive 1555 | . . . . . . . . . . . . . . 114 . . . . 580 . . 208 . 653 . . . . . . . . . . . Electromagnetic 500 | 116 60 . . . . . 23 . . . . . . . . . . . 192 . . . . . . . . . . 82 . 27 . . . Impact . | . . . . . . . . . . . . . . . . . . . . . . . . . . . . . . . . . . . . Slashing 2427 | . . . . . 2169 . . . . . . . . . . . . . . . . 75 . . . 11 172 . . . . . . . . Piercing 345 | . . . . . . . . . . . . . 137 . . . . . . . . . . . . . . . . . 208 . . . . Highest Corruption 8 | . . . . . . . . 1 1 1 1 . . . . . . 1 2 2 2 2 . 1 1 1 1 1 . . 1 1 8 . 5 Average Corruption 2 | . . . . . . . . 1 1 1 1 . . . . . . 1 1 2 2 2 . 1 1 1 1 1 . . 1 1 4 . 4 Corruption Purged . | . . . . . . . . . . . . . . . . . . . . . . . . . . . . . . . . . . . . Corruption Blocked . | . . . . . . . . . . . . . . . . . . . . . . . . . . . . . . . . . . . . Effects 126 | . . . . . . . . 1 4 6 . . . . . . . 2 4 4 3 . . 4 5 . 1 . . . . 5 55 . 32 Message Errors 35 | . . . . . . . . . . 1 . . . . . . . . 3 . 2 . . 1 2 . 1 . . . . 1 11 . 13 Matter Fused 23 | . . . . . . . . . 1 2 . . . . . . . 1 1 1 1 . . . 1 . . . . . . 1 8 . 6 Heat Flow Errors 17 | . . . . . . . . 1 . 1 . . . . . . . 1 . . . . . 1 1 . . . . . . . 7 . 5 Energy Discharges 12 | . . . . . . . . . 1 . . . . . . . . . . 1 . . . 1 1 . . . . . . . 5 . 3 Parts Rejected 1 | . . . . . . . . . . . . . . . . . . . . 1 . . . . . . . . . . . . . . . Parts Fused 2 | . . . . . . . . . . . . . . . . . . . . . . . . . . . . . . . . . 2 . . Data Loss (minor) 12 | . . . . . . . . . 1 1 . . . . . . . . . 1 . . . . . . . . . . . 1 6 . 2 Data Loss (major) 6 | . . . . . . . . . 1 . . . . . . . . . . . . . . 1 . . . . . . . . 3 . 1 Misfires 4 | . . . . . . . . . . 1 . . . . . . . . . . . . . . . . . . . . . 1 1 . 1 Alerts 2 | . . . . . . . . . . . . . . . . . . . . . . . . . . . . . . . . . 1 . 1 Weapon Failures 12 | . . . . . . . . . . . . . . . . . . . . . . . . . . . . . . . . 1 11 . . Overload Shots . | . . . . . . . . . . . . . . . . . . . . . . . . . . . . . . . . . . . . Overflow Damage 1570 | . . . . . 163 . . . . . . 516 . 252 . . . . 311 . . . . 175 . . . . . 41 112 . . . . Projectiles . | . . . . . . . . . . . . . . . . . . . . . . . . . . . . . . . . . . . . Explosions 1295 | . . . . . . . . . . . . 516 . 252 . . . . 311 . . . . 175 . . . . . 41 . . . . . Melee 275 | . . . . . 163 . . . . . . . . . . . . . . . . . . . . . . . . . 112 . . . . Knockbacks . | . . . . . . . . . . . . . . . . . . . . . . . . . . . . . . . . . . . . Impact . | . . . . . . . . . . . . . . . . . . . . . . . . . . . . . . . . . . . . Kinetic . | . . . . . . . . . . . . . . . . . . . . . . . . . . . . . . . . . . . . Secondary . | . . . . . . . . . . . . . . . . . . . . . . . . . . . . . . . . . . . . Self-Inflicted Damage 381 | . . . . . . . 7 . 59 . . . . 174 . . . . 39 . . . . 35 . . . . . 63 . . . . 4 Shots 11 | . . . . . . . 1 . 2 . . . . 3 . . . . 2 . . . . 1 . . . . . 1 . . . . 1 Rammed . | . . . . . . . . . . . . . . . . . . . . . . . . . . . . . . . . . . . . Targets Rammed . | . . . . . . . . . . . . . . . . . . . . . . . . . . . . . . . . . . . . Kicked . | . . . . . . . . . . . . . . . . . . . . . . . . . . . . . . . . . . . . Crushed . | . . . . . . . . . . . . . . . . . . . . . . . . . . . . . . . . . . . . Highest Temperature 372 | . 34 9 21 13 104 17 43 52 68 107 . 42 54 311 237 124 . 81 284 28 24 240 90 277 99 89 . 51 372 65 57 214 249 122 173 Average Temperature 57 | . 8 9 5 10 41 11 9 7 18 47 . 29 23 71 82 44 . 40 64 21 20 79 45 62 37 37 . 31 155 30 28 103 55 72 71 Received Heat Transfer 3121 | . 312 144 540 15 . 9 63 66 66 9 . 18 36 210 . 66 . 21 288 27 18 169 9 276 30 21 . 39 30 12 144 27 384 9 63 Effects 3 | . . . . . . . . . . . . . . . . . . . . . . . . . . . . . . . . . 3 . . Interference 3 | . . . . . . . . . . . . . . . . . . . . . . . . . . . . . . . . . 3 . . Siege Activations . | . . . . . . . . . . . . . . . . . . . . . . . . . . . . . . . . . . . . Martial Activations . | . . . . . . . . . . . . . . . . . . . . . . . . . . . . . . . . . . . . Shielding Activations . | . . . . . . . . . . . . . . . . . . . . . . . . . . . . . . . . . . . . Robots Disrupted 1 | . . . . . . . . . . . . . . . . . . . . . . . . . . . . . . 1 . . . . . Combat Hostiles . | . . . . . . . . . . . . . . . . . . . . . . . . . . . . . . . . . . . . Robots Corrupted . | . . . . . . . . . . . . . . . . . . . . . . . . . . . . . . . . . . . . Combat Hostiles . | . . . . . . . . . . . . . . . . . . . . . . . . . . . . . . . . . . . . Parts Fried . | . . . . . . . . . . . . . . . . . . . . . . . . . . . . . . . . . . . . Impact Corruptions . | . . . . . . . . . . . . . . . . . . . . . . . . . . . . . . . . . . . . Robots Melted 2 | . 2 . . . . . . . . . . . . . . . . . . . . . . . . . . . . . . . . . . Combat Hostiles 2 | . 2 . . . . . . . . . . . . . . . . . . . . . . . . . . . . . . . . . . Parts Melted 20 | . 6 . . . . . . . . . . . . 1 . . . . 3 . . 9 . . . . . . . . . . . . 1 Heat Transferred 5158 | 175 2233 . . . . . . . . . . . . 800 . . . . 1100 . . . . 800 . . . . . 50 . . . . . Parts Sabotaged . | . . . . . . . . . . . . . . . . . . . . . . . . . . . . . . . . . . . . Parts Stolen . | . . . . . . . . . . . . . . . . . . . . . . . . . . . . . . . . . . . . Parts Stripped . | . . . . . . . . . . . . . . . . . . . . . . . . . . . . . . . . . . . . Power Chain Reactions 9 | . 3 . . . . . . . . . . . . 1 . . . . 1 . . . . . . . . . . 1 . . . . 3 Alert | -11 -10 -10 -9 -9 -9 -8 -8 -8 -7 -7 -7 -7 -6 -6 -6 -6 -6 -5 -5 -5 -5 -5 -4 -4 -4 -4 -4 -3 -3 -3 -2 -2 -2 -1 -1 ------- Run | Yrd Mat Min Mat Min Exi Min Mat Gar Fac Low Zio Dee Pro Fac Low Low Dat Pro Fac Upp Upp War Pro Fac Upp Upp Zhi Pro Res Tes Res Qua Frg Acc Com Maximum Alert Level 5 | . 1 . 3 1 . . 3 4 4 . . . . 5 . . . . 5 . . . . 5 . . . . 1 2 5 4 5 5 5 Low Security (%) 18 | 100 65 100 21 . . 100 30 . . . . . . 1 . . . . 3 . . . . 6 . . . . 75 21 . . . . . Level 1 12 | . 34 . 35 100 . . 23 . 15 . . . . 8 . . . . 4 . . . . 9 . . . . 24 65 18 . . . . Level 2 10 | . . . 26 . . . 41 24 38 . . . . 6 . . . . . . . . . 6 . . . . . 12 13 50 3 . . Level 3 7 | . . . 17 . . . 4 20 13 . . . . 16 . . . . 1 . . . . 4 . . . . . . 23 31 8 . . Level 4 6 | . . . . . . . . 54 32 . . . . 5 . . . . 4 . . . . 8 . . . . . . 20 17 2 . . Level 5 15 | . . . . . . . . . . . . . . 24 . . . . 63 . . . . 7 . . . . . . 9 . 39 73 2 High Security 29 | . . . . . . . . . . . . . . 36 . . . . 23 . . . . 57 . . . . . . 14 . 44 26 97 Max Security . | . . . . . . . . . . . . . . . . . . . . . . . . . . . . . . . . . . . . Sterilizations 4 | . . . 1 . . . . . . . . . . 1 . . . . 1 . . . . 1 . . . . . . . . . . . Peak Influence 10279 | 15 283 103 975 366 . 177 846 1415 1464 . . . . 4936 . . . . 6393 . . . . 7237 . . . . 275 464 2159 1148 7015 4987 10279 Initial 3682 | . 2 73 . 316 . . 38 475 643 . . . . 188 . . . . 169 . . . . 107 . . . . 267 77 221 1100 384 3682 2805 Average 2507 | 3 143 18 417 307 . 95 372 1028 861 . . . . 2275 . . . . 3673 . . . . 3082 . . . . 154 273 1090 774 2963 4495 8129 Influence Increases 54165 | 25 883 150 1798 50 . 187 1098 940 1471 115 . . 532 5178 160 500 . 446 6784 374 221 5256 265 7300 295 160 5 510 62 517 2138 645 7231 1385 7484 Destroy 0b10 Robot/C 31620 | . 560 100 1080 40 . 140 660 780 860 80 . . 440 2640 140 440 . 380 2540 340 180 4400 220 2680 260 140 . 460 20 280 1240 300 5140 660 4420 Destroy 0b10 Robot/NC 1535 | 25 30 20 75 . . . 55 10 50 20 . . 10 150 10 5 . 10 205 5 10 75 5 200 5 . 5 . 5 10 85 30 205 35 185 Destroy Leader 4440 | . 130 30 306 10 . 20 192 30 226 10 . . 40 464 10 50 . 40 480 10 20 . 40 442 30 20 . 50 12 24 264 46 614 142 688 Allied During Kill 488 | . . . . . . . . 5 . 5 . . 42 2 . 5 . 16 52 4 11 346 . . . . . . . . . . . . . Successful Hack 244 | . 18 . 3 . . . 5 20 21 . . . . 4 . . . . 52 . . . . 39 . . . . . 5 18 8 33 18 . Select Force Hacks 730 | . 50 . 270 . . . 90 . 150 . . . . 30 . . . . 60 . . . . 80 . . . . . . . . . . . Disable Machine 4167 | . 18 . . . . 9 27 . 45 . . . . 828 . . . . 1233 . . . . 1395 . . . . . 108 27 63 270 54 90 Anti-Garrison Action 650 | . . . . . . . . . . . . . . 150 . . . . 300 . . . . . . . . . . . 150 . . . 50 Destroy Structure 8151 | . 17 . 4 . . 3 54 80 74 . . . . 850 . . . . 1802 . . . . 2374 . . . . 10 90 324 153 894 261 1161 Partial Spotted 420 | . . . 45 . . 15 15 15 30 . . . . 30 . . . . 45 . . . . 45 . . . . 15 . 30 30 . . 105 Lose Combat Pursuer 1020 | . 60 . 15 . . . . . 15 . . . . 30 . . . . 15 15 . 435 . 45 . . . . . . . 15 75 15 285 Active Sensor Use 700 | . . . . . . . . . . . . . . . . . . . . . . . . . . . . . . . . . . 200 500 Influence Decreases 43929 | 20 665 373 839 763 246 70 379 361 1462 918 621 . 190 584 2320 981 2295 140 697 3012 1173 3813 4316 258 3359 1269 3069 60 353 222 433 2062 1001 3413 2192 Entered New Map 35100 | . 3 150 . 643 246 . 79 361 772 638 621 . . 154 2210 771 2295 . 137 2862 1043 2803 4246 88 3239 1159 3064 . 183 82 233 1102 401 3333 2182 Time Decay 7049 | 20 662 193 539 120 . 70 290 . 390 280 . . 190 380 110 210 . 140 500 150 130 910 70 170 120 110 5 60 20 140 190 210 590 80 . Lost Part 40 | . . 10 . . . . 10 . . . . . . . . . . . . . . . . . . . . . . . . . 10 . 10 Lost Ally 240 | . . 20 . . . . . . . . . . . 50 . . . . 60 . . 100 . . . . . . . . 10 . . . . Purge Threat 1500 | . . . 300 . . . . . 300 . . . . . . . . . . . . . . . . . . . 150 . . 750 . . . Squads Dispatched 221 | . 8 . 14 . . . 5 . 13 . . . . 29 . 1 . . 27 . . . . 25 . . . . 1 1 5 3 39 7 43 Investigation 53 | . 8 . 12 . . . 3 . 6 . . . . 5 . . . . 4 . . . . 4 . . . . 1 . 1 . . 3 6 Extermination 13 | . . . . . . . . . 3 . . . . 2 . . . . 1 . . . . 1 . . . . . 1 . 1 3 1 . Reinforcement 18 | . . . 1 . . . 1 . . . . . . 2 . . . . 5 . . . . 3 . . . . . . 4 . . 1 1 Assault 122 | . . . 1 . . . . . . . . . . 17 . 1 . . 15 . . . . 15 . . . . . . . 1 36 . 36 Garrison 15 | . . . . . . . 1 . 4 . . . . 3 . . . . 2 . . . . 2 . . . . . . . 1 . 2 . Intercept . | . . . . . . . . . . . . . . . . . . . . . . . . . . . . . . . . . . . . Searches Triggered . | . . . . . . . . . . . . . . . . . . . . . . . . . . . . . . . . . . . . Construction Impeded 5 | . . . . . . . . . . . . . . 1 . . . . 2 . . . . 1 . . . . . . 1 . . . . Haulers Reinforced 7 | . . . . . . . . . . . . . . . . . . . 2 . . . . 2 . . . . . . 3 . . . . Active Scanning Responses 7 | . . . . . . . . . . . . . . . . . . . . . . . . . . . . . . . . . . 2 5 Cargo Convoy Interrupts 2 | . . . . . . . . . . . . . . 1 . . . . 1 . . . . . . . . . . . . . . . . Stealth | -11 -10 -10 -9 -9 -9 -8 -8 -8 -7 -7 -7 -7 -6 -6 -6 -6 -6 -5 -5 -5 -5 -5 -4 -4 -4 -4 -4 -3 -3 -3 -2 -2 -2 -1 -1 --------- Run | Yrd Mat Min Mat Min Exi Min Mat Gar Fac Low Zio Dee Pro Fac Low Low Dat Pro Fac Upp Upp War Pro Fac Upp Upp Zhi Pro Res Tes Res Qua Frg Acc Com Distress Signals 20 | . 2 . 3 . . . 1 . . . . . . 1 . . . . 2 . . . . 3 . . . . . . 2 . 1 1 4 Communications Jammed . | . . . . . . . . . . . . . . . . . . . . . . . . . . . . . . . . . . . . Distress Signals . | . . . . . . . . . . . . . . . . . . . . . . . . . . . . . . . . . . . . Times Spotted 1728 | . 40 28 62 2 14 5 35 31 33 3 . 9 15 142 5 23 . 15 130 18 14 251 4 153 14 12 . 23 5 14 72 20 271 24 241 Peak Tracking Total 24 | . 3 5 7 2 9 3 4 6 5 3 . 4 7 15 4 5 . 5 11 13 5 24 3 11 3 5 . 6 5 3 10 5 11 9 21 Tactical Retreats 37 | . 4 1 1 . 1 . . . 1 . . . . 2 . . . . 1 1 . 10 . 2 . . . . . . . 1 3 1 8 Traps | -11 -10 -10 -9 -9 -9 -8 -8 -8 -7 -7 -7 -7 -6 -6 -6 -6 -6 -5 -5 -5 -5 -5 -4 -4 -4 -4 -4 -3 -3 -3 -2 -2 -2 -1 -1 ------- Run | Yrd Mat Min Mat Min Exi Min Mat Gar Fac Low Zio Dee Pro Fac Low Low Dat Pro Fac Upp Upp War Pro Fac Upp Upp Zhi Pro Res Tes Res Qua Frg Acc Com Traps Triggered 50 | . 1 . 1 . . . 1 7 4 . . . . 2 . . . . 4 . . . . 4 . . . . 1 1 . 2 18 2 2 Indirectly . | . . . . . . . . . . . . . . . . . . . . . . . . . . . . . . . . . . . . Trap Hack Attempts . | . . . . . . . . . . . . . . . . . . . . . . . . . . . . . . . . . . . . Triggered . | . . . . . . . . . . . . . . . . . . . . . . . . . . . . . . . . . . . . Disarmed . | . . . . . . . . . . . . . . . . . . . . . . . . . . . . . . . . . . . . Reprogrammed . | . . . . . . . . . . . . . . . . . . . . . . . . . . . . . . . . . . . . Reused . | . . . . . . . . . . . . . . . . . . . . . . . . . . . . . . . . . . . . Traps Extracted . | . . . . . . . . . . . . . . . . . . . . . . . . . . . . . . . . . . . . Installed 4 | . . . . . . . . . . 4 . . . . . . . . . . . . . . . . . . . . . . . . . Triggered . | . . . . . . . . . . . . . . . . . . . . . . . . . . . . . . . . . . . . Most Traps Carried 1 | . . . . . . . . . . 1 . . . . . . . . . . . . . . . . . . . . . . . . . Machines | -11 -10 -10 -9 -9 -9 -8 -8 -8 -7 -7 -7 -7 -6 -6 -6 -6 -6 -5 -5 -5 -5 -5 -4 -4 -4 -4 -4 -3 -3 -3 -2 -2 -2 -1 -1 ---------- Run | Yrd Mat Min Mat Min Exi Min Mat Gar Fac Low Zio Dee Pro Fac Low Low Dat Pro Fac Upp Upp War Pro Fac Upp Upp Zhi Pro Res Tes Res Qua Frg Acc Com Machines Disabled 512 | . 2 . . . 5 1 3 . 5 . . 2 . 93 1 . . . 139 5 . 4 . 157 . . . 3 . 16 4 8 45 6 13 Max in Single Turn 24 | . 1 . . . 1 1 2 . 3 . . 1 . 10 1 . . . 24 1 . 1 . 14 . . . 1 . 2 1 1 3 1 2 Garrison Access 17 | . . . . . . . . . 2 . . . . 3 . . . . 3 . . . . 4 . . . . . 1 2 1 1 . . Phase Generator 1 | . . . . . . . . . . . . . . . . . . . . . . . . . . . . . . . . . . . 1 Machines Repaired . | . . . . . . . . . . . . . . . . . . . . . . . . . . . . . . . . . . . . Machines Dismantled 1 | . . . . . . . . . . . . . . . . . . . 1 . . . . . . . . . . . . . . . . Machines Sabotaged 4 | . 1 . 3 . . . . . . . . . . . . . . . . . . . . . . . . . . . . . . . . Overloaded Fab Kills . | . . . . . . . . . . . . . . . . . . . . . . . . . . . . . . . . . . . . Hacking | -11 -10 -10 -9 -9 -9 -8 -8 -8 -7 -7 -7 -7 -6 -6 -6 -6 -6 -5 -5 -5 -5 -5 -4 -4 -4 -4 -4 -3 -3 -3 -2 -2 -2 -1 -1 --------- Run | Yrd Mat Min Mat Min Exi Min Mat Gar Fac Low Zio Dee Pro Fac Low Low Dat Pro Fac Upp Upp War Pro Fac Upp Upp Zhi Pro Res Tes Res Qua Frg Acc Com Machines Accessed 134 | . 9 . 15 1 1 . 14 3 15 . 1 . . 10 . . 3 1 11 1 1 3 . 12 . . 4 1 2 5 3 7 5 2 4 Terminals 76 | . 8 . 10 . . . 10 3 8 . . . . 6 . . . 1 . 1 . . . 5 . . . 1 2 4 1 6 4 2 4 Fabricators 8 | . . . . . . . . . . . . . . . . . . . 6 . . . . 2 . . . . . . . . . . . Repair Stations 2 | . 1 . 1 . . . . . . . . . . . . . . . . . . . . . . . . . . . . . . . . Recycling Units 11 | . . . 2 . . . 2 . 4 . . . . . . . . . 2 . . . . 1 . . . . . . . . . . . Scanalyzers 8 | . . . 2 . . . 1 . 1 . . . . 2 . . . . 1 . . . . 1 . . . . . . . . . . . Garrison Access 15 | . . . . . . . 1 . 2 . . . . 2 . . . . 2 . . . . 3 . . . . . 1 2 1 1 . . Total Hacks 316 | . 26 . 28 1 1 . 26 6 29 . 5 . . 19 . . 22 2 23 4 1 4 . 22 . . 16 5 6 13 8 26 10 4 9 Successful 200 | . 15 . 21 1 1 . 19 3 19 . 5 . . 8 . . 22 2 9 4 1 4 . 11 . . 16 5 3 9 2 11 7 1 1 Failed 115 | . 11 . 7 . . . 7 3 10 . . . . 11 . . . . 14 . . . . 11 . . . . 3 3 6 15 3 3 8 Catastrophic 12 | . . . . . . . 3 . . . . . . . . . . . 1 . . . . 1 . . . . . . . 3 . 2 2 Database Lockouts 1 | . . . . . . . . . . . . . . . . . . . . . . . . . . . . . . 1 . . . . . Manual 167 | . 22 . 25 . 1 . 19 . 21 . 5 . . 12 . . . . 18 . . 1 . 18 . . . . 1 7 . 9 5 . 3 Terminals 194 | . 25 . 23 . . . 22 6 20 . . . . 12 . . . 2 . 4 . . . 9 . . . 5 6 11 2 25 9 4 9 Fabricators 21 | . . . . . . . . . . . . . . . . . . . 16 . . . . 5 . . . . . . . . . . . Repair Stations 2 | . 1 . 1 . . . . . . . . . . . . . . . . . . . . . . . . . . . . . . . . Recycling Units 15 | . . . 2 . . . 2 . 5 . . . . . . . . . 3 . . . . 3 . . . . . . . . . . . Scanalyzers 11 | . . . 2 . . . 1 . 1 . . . . 4 . . . . 1 . . . . 2 . . . . . . . . . . . Garrison Access 23 | . . . . . . . 1 . 3 . . . . 3 . . . . 3 . . . . 3 . . . . . 2 6 1 1 . . Terminal Hacks 117 | . 4 . 4 1 1 . 10 3 6 . 5 . . 3 . . 22 2 . 4 1 4 . 3 . . 16 5 3 5 1 8 4 1 1 Record 26 | . 1 . . . . . . . . . . . . . . . 6 2 . 4 . 3 . . . . 5 5 . . . . . . . Part Schematic 17 | . . . . . . . . . 1 . 5 . . . . . 8 . . . . . . . . . 3 . . . . . . . . Robot Schematic 5 | . . . . . . . . . . . . . . . . . 5 . . . . . . . . . . . . . . . . . . Robot Analysis 10 | . 2 . . . . . . . 1 . . . . . . . . . . . . . . 1 . . 4 . . 2 . . . . . Prototype ID Bank 9 | . . . . . . . . . . . . . . . . . 3 . . . . . . . . . 4 . . . . . 2 . . Open Door 5 | . . . . 1 . . . 1 . . . . . . . . . . . . 1 1 . 1 . . . . . . . . . . . Branch Access Points 10 | . 1 . . . . . 1 . 1 . . . . 1 . . . . . . . . . 1 . . . . 1 1 1 . 1 1 . Emergency Access Points 3 | . . . . . . . . 1 . . . . . . . . . . . . . . . . . . . . . 2 . . . . . Terminal Index 1 | . . . 1 . . . . . . . . . . . . . . . . . . . . . . . . . . . . . . . . Alert Level 7 | . . . . . . . 1 . 1 . . . . 1 . . . . . . . . . . . . . . 1 . . 3 . . . Unreport Threat 10 | . . . 2 . . . . . 2 . . . . . . . . . . . . . . . . . . . 1 . . 5 . . . Locate Traps 3 | . . . . . . . 3 . . . . . . . . . . . . . . . . . . . . . . . . . . . . Maintenance Status 2 | . . . . . . . 1 . . . . . . . . . . . . . . . . . . . . . . . . . 1 . . Patrol Status 1 | . . . . . . . 1 . . . . . . . . . . . . . . . . . . . . . . . . . . . . Reinforcement Status 1 | . . . . . . . 1 . . . . . . . . . . . . . . . . . . . . . . . . . . . . Recall Reinforcements 1 | . . . . . . . 1 . . . . . . . . . . . . . . . . . . . . . . . . . . . . Hauler Manifests 2 | . . . 1 . . . . . . . . . . 1 . . . . . . . . . . . . . . . . . . . . . Zone Layout 1 | . . . . . . . 1 . . . . . . . . . . . . . . . . . . . . . . . . . . . . Patrol Navigation 1 | . . . . . . . . 1 . . . . . . . . . . . . . . . . . . . . . . . . . . . Proto ID Catalog 1 | . . . . . 1 . . . . . . . . . . . . . . . . . . . . . . . . . . . . . . Disengage Seal 1 | . . . . . . . . . . . . . . . . . . . . . . . . . . . . . . . . . . . 1 Fabricator Hacks 2 | . . . . . . . . . . . . . . . . . . . 2 . . . . . . . . . . . . . . . . Network Status 1 | . . . . . . . . . . . . . . . . . . . 1 . . . . . . . . . . . . . . . . Build 1 | . . . . . . . . . . . . . . . . . . . 1 . . . . . . . . . . . . . . . . Repair Station Hacks . | . . . . . . . . . . . . . . . . . . . . . . . . . . . . . . . . . . . . Recycling Unit Hacks . | . . . . . . . . . . . . . . . . . . . . . . . . . . . . . . . . . . . . Scanalyzer . | . . . . . . . . . . . . . . . . . . . . . . . . . . . . . . . . . . . . Garrison Access Hacks 13 | . . . . . . . 1 . 2 . . . . 2 . . . . 1 . . . . 3 . . . . . 1 1 1 1 . . Unlock Access 1 | . . . . . . . 1 . . . . . . . . . . . . . . . . . . . . . . . . . . . . Seal Access 12 | . . . . . . . . . 2 . . . . 2 . . . . 1 . . . . 3 . . . . . 1 1 1 1 . . Unauthorized Hacks 68 | . 11 . 17 . . . 8 . 11 . . . . 3 . . . . 6 . . . . 5 . . . . . 3 . 2 2 . . Terminals 43 | . 10 . 12 . . . 5 . 6 . . . . 2 . . . . . . . . . 1 . . . . . 3 . 2 2 . . Assimilate 2 | . . . 1 . . . 1 . . . . . . . . . . . . . . . . . . . . . . . . . . . . Botnet 29 | . 5 . 5 . . . 4 . 6 . . . . 2 . . . . . . . . . . . . . . . 3 . 2 2 . . Disrupt 1 | . 1 . . . . . . . . . . . . . . . . . . . . . . . . . . . . . . . . . . Sabotage 11 | . 4 . 6 . . . . . . . . . . . . . . . . . . . . 1 . . . . . . . . . . . Fabricators 6 | . . . . . . . . . . . . . . . . . . . 4 . . . . 2 . . . . . . . . . . . Fabnet 5 | . . . . . . . . . . . . . . . . . . . 4 . . . . 1 . . . . . . . . . . . Download 1 | . . . . . . . . . . . . . . . . . . . . . . . . 1 . . . . . . . . . . . Repair Stations 2 | . 1 . 1 . . . . . . . . . . . . . . . . . . . . . . . . . . . . . . . . Patch 2 | . 1 . 1 . . . . . . . . . . . . . . . . . . . . . . . . . . . . . . . . Recycling Units 10 | . . . 2 . . . 2 . 4 . . . . . . . . . 1 . . . . 1 . . . . . . . . . . . Tunnel 10 | . . . 2 . . . 2 . 4 . . . . . . . . . 1 . . . . 1 . . . . . . . . . . . Scanalyzers 7 | . . . 2 . . . 1 . 1 . . . . 1 . . . . 1 . . . . 1 . . . . . . . . . . . Extract 7 | . . . 2 . . . 1 . 1 . . . . 1 . . . . 1 . . . . 1 . . . . . . . . . . . Garrison Access . | . . . . . . . . . . . . . . . . . . . . . . . . . . . . . . . . . . . . Data Cores Recovered 18 | . . . 1 . . . 3 . . . . . . 5 . . . . 3 . . . . 3 . . . . . . . 1 2 . . Used 4 | . . . . . . . . . . . . . . 2 . . . . . . . . . 2 . . . . . . . . . . . Hacking Detections 72 | . 6 . 6 . . . 6 2 7 . . . . 9 . . . . 6 1 . . . 5 . . . 1 2 5 2 6 3 2 3 Full Trace Events 12 | . 4 . . . . . . . 1 . . . . 1 . . . . 1 1 . . . . . . . . 1 . 1 . . 1 1 Feedback Events 1 | . . . . . . . . . . . . . . . . . . . 1 . . . . . . . . . . . . . . . . Corruption 1 | . . . . . . . . . . . . . . . . . . . 1 . . . . . . . . . . . . . . . . Feedback Blocked . | . . . . . . . . . . . . . . . . . . . . . . . . . . . . . . . . . . . . Robot Schematics Acquired 10 | . . . . . . . . . . . 3 . . . . . 5 . . . . . . . . . . . . . . . 2 . . Robots Built 3 | . . . . . . . . . . . . . . . . . . . 3 . . . . . . . . . . . . . . . . Authchips . | . . . . . . . . . . . . . . . . . . . . . . . . . . . . . . . . . . . . Time 134 | . . . . . . . . . . . . . . . . . . . 134 . . . . . . . . . . . . . . . . Total Robot Build Rating 12 | . . . . . . . . . . . . . . . . . . . 12 . . . . . . . . . . . . . . . . Part Schematics Acquired 78 | . . . 4 . . . 4 . 6 . 20 . . 2 . . 8 . 6 . . . . 3 . . 3 . . . . . 22 . . Parts Built . | . . . . . . . . . . . . . . . . . . . . . . . . . . . . . . . . . . . . Authchips . | . . . . . . . . . . . . . . . . . . . . . . . . . . . . . . . . . . . . Time . | . . . . . . . . . . . . . . . . . . . . . . . . . . . . . . . . . . . . Total Part Build Rating . | . . . . . . . . . . . . . . . . . . . . . . . . . . . . . . . . . . . . Parts Repaired . | . . . . . . . . . . . . . . . . . . . . . . . . . . . . . . . . . . . . Time . | . . . . . . . . . . . . . . . . . . . . . . . . . . . . . . . . . . . . Parts Recycled . | . . . . . . . . . . . . . . . . . . . . . . . . . . . . . . . . . . . . Recycled Matter . | . . . . . . . . . . . . . . . . . . . . . . . . . . . . . . . . . . . . Retrieved Matter . | . . . . . . . . . . . . . . . . . . . . . . . . . . . . . . . . . . . . Retrieved Components . | . . . . . . . . . . . . . . . . . . . . . . . . . . . . . . . . . . . . Parts Scanalyzed . | . . . . . . . . . . . . . . . . . . . . . . . . . . . . . . . . . . . . Part Schematics Acquired . | . . . . . . . . . . . . . . . . . . . . . . . . . . . . . . . . . . . . Parts Damaged . | . . . . . . . . . . . . . . . . . . . . . . . . . . . . . . . . . . . . Bothacking | -11 -10 -10 -9 -9 -9 -8 -8 -8 -7 -7 -7 -7 -6 -6 -6 -6 -6 -5 -5 -5 -5 -5 -4 -4 -4 -4 -4 -3 -3 -3 -2 -2 -2 -1 -1 ------------ Run | Yrd Mat Min Mat Min Exi Min Mat Gar Fac Low Zio Dee Pro Fac Low Low Dat Pro Fac Upp Upp War Pro Fac Upp Upp Zhi Pro Res Tes Res Qua Frg Acc Com Used RIF Installer . | . . . . . . . . . . . . . . . . . . . . . . . . . . . . . . . . . . . . Robots Hacked . | . . . . . . . . . . . . . . . . . . . . . . . . . . . . . . . . . . . . Non-combat . | . . . . . . . . . . . . . . . . . . . . . . . . . . . . . . . . . . . . Combat . | . . . . . . . . . . . . . . . . . . . . . . . . . . . . . . . . . . . . Robot Hacks Applied . | . . . . . . . . . . . . . . . . . . . . . . . . . . . . . . . . . . . . Relay Couplers Released 6 | . . . . . . . . . . . . . . 1 . . . . 3 . . . . 1 . . . . . . 1 . . . . Machine Destruction 6 | . . . . . . . . . . . . . . 1 . . . . 3 . . . . 1 . . . . . . 1 . . . . Fabnet Peak Effective % . | . . . . . . . . . . . . . . . . . . . . . . . . . . . . . . . . . . . . Robots Rewired 15 | . . . . . . . . 2 1 . . . 2 1 . 2 . . 1 . . 5 . . . . . . . 1 . . . . . Allies Hacked 2 | . . . . . . . . . . . . . . 2 . . . . . . . . . . . . . . . . . . . . . Hacks Repelled . | . . . . . . . . . . . . . . . . . . . . . . . . . . . . . . . . . . . . Allies | -11 -10 -10 -9 -9 -9 -8 -8 -8 -7 -7 -7 -7 -6 -6 -6 -6 -6 -5 -5 -5 -5 -5 -4 -4 -4 -4 -4 -3 -3 -3 -2 -2 -2 -1 -1 -------- Run | Yrd Mat Min Mat Min Exi Min Mat Gar Fac Low Zio Dee Pro Fac Low Low Dat Pro Fac Upp Upp War Pro Fac Upp Upp Zhi Pro Res Tes Res Qua Frg Acc Com Total Allies 23 | . . 1 1 2 . . 1 2 1 . . . 2 1 . 2 . . 4 . . 5 . . . . . . . 1 . . . . . Largest Group 8 | . . 1 1 2 2 . 1 2 3 2 2 2 4 5 . 2 2 2 3 3 3 8 . . . . . . . 1 1 . . . . Highest-Rated Group 319 | . . 31 10 43 43 . 10 62 70 54 54 54 112 152 . 58 58 58 95 90 90 319 . . . . . . . 18 18 . . . . Highest-Rated Ally 49 | . . 31 10 31 31 . 10 31 31 31 31 31 31 40 . 29 29 29 41 30 30 49 . . . . . . . 18 18 . . . . Total Orders 13 | . . . 3 . . . . . 1 2 1 2 . . . . . . 1 . . 3 . . . . . . . . . . . . . STAY 10 | . . . 2 . . . . . 1 1 1 1 . . . . . . 1 . . 3 . . . . . . . . . . . . . FOLLOW 3 | . . . 1 . . . . . . 1 . 1 . . . . . . . . . . . . . . . . . . . . . . . Ally Attacks 84 | . . 21 . . . . . 5 . . . 4 1 24 . . . 3 9 . . 17 . . . . . . . . . . . . . Total Damage 1907 | . . 292 . . . . . 83 . . . 44 . 439 . . . 20 234 . . 795 . . . . . . . . . . . . . Kills 18 | . . 9 . . . . . 2 . . . . . 2 . . . . . . . 5 . . . . . . . . . . . . . Allies Corrupted 1 | . . . . . . . . . . . . . . . . . . . . . . 1 . . . . . . . . . . . . . Allies Melted 2 | . . . . . . . . . . . . . . . . . . . . . . 2 . . . . . . . . . . . . . Intel | -11 -10 -10 -9 -9 -9 -8 -8 -8 -7 -7 -7 -7 -6 -6 -6 -6 -6 -5 -5 -5 -5 -5 -4 -4 -4 -4 -4 -3 -3 -3 -2 -2 -2 -1 -1 ------- Run | Yrd Mat Min Mat Min Exi Min Mat Gar Fac Low Zio Dee Pro Fac Low Low Dat Pro Fac Upp Upp War Pro Fac Upp Upp Zhi Pro Res Tes Res Qua Frg Acc Com Active Infowar (turns) 7378 | 14 1344 879 1116 243 228 . 117 . . . . . . 7 . . . . 516 3 4 2 . . . . . . . . . . 692 220 1993 Optics 129 | . . . . . . . 117 . . . . . . . . . . . . . . 2 . . . . . . . . . . 10 . . A.S.S. 2894 | . . . . . . . . . . . . . . . . . . . . . . . . . . . . . . . . . 681 220 1993 Terrain 3821 | 14 1344 879 1116 241 227 . . . . . . . . . . . . . . . . . . . . . . . . . . . . . . Seismic 3813 | 7 1344 879 1116 243 224 . . . . . . . . . . . . . . . . . . . . . . . . . . . . . . T.N.C. 526 | . . . . . . . . . . . . . . 7 . . . . 516 3 . . . . . . . . . . . . . . . Cloaking 4 | . . . . . . . . . . . . . . . . . . . . . 4 . . . . . . . . . . . . . . ECM 1 | . . . . . . . . . . . . . . . . . . . . . . . . . . . . . . . . . 1 . . Robot Analysis Total 10 | . 2 . . . . . . . 1 . . . . . . . . . . . . . . 1 . . 4 . . 2 . . . . . Derelict Logs Recovered 22 | . . 1 . 3 . . . . . 3 . . 3 . 1 2 . 1 . 2 2 . . . 2 2 . . . . . . . . . Drone Launches . | . . . . . . . . . . . . . . . . . . . . . . . . . . . . . . . . . . . . Drone Recoveries . | . . . . . . . . . . . . . . . . . . . . . . . . . . . . . . . . . . . . Exploration | -11 -10 -10 -9 -9 -9 -8 -8 -8 -7 -7 -7 -7 -6 -6 -6 -6 -6 -5 -5 -5 -5 -5 -4 -4 -4 -4 -4 -3 -3 -3 -2 -2 -2 -1 -1 ------------- Run | Yrd Mat Min Mat Min Exi Min Mat Gar Fac Low Zio Dee Pro Fac Low Low Dat Pro Fac Upp Upp War Pro Fac Upp Upp Zhi Pro Res Tes Res Qua Frg Acc Com Turns Passed 21737 | 87 1344 879 1116 243 670 182 580 511 792 575 352 551 396 1204 226 435 19 294 1330 307 273 2017 156 801 258 229 105 139 54 296 464 438 2149 220 2045 Spaces Moved 51905 | 51 1038 745 1598 585 1370 602 1650 916 2377 1819 1035 1318 1042 2954 959 1198 84 924 3250 866 859 3496 632 2199 923 911 173 323 218 963 1068 1085 5531 747 6396 Core 26 | 1 . . . . . . . . . . . . . . . . . . 25 . . . . . . . . . . . . . . . . Treads . | . . . . . . . . . . . . . . . . . . . . . . . . . . . . . . . . . . . . Legs . | . . . . . . . . . . . . . . . . . . . . . . . . . . . . . . . . . . . . Wheels 1878 | 50 1038 745 45 . . . . . . . . . . . . . . . . . . . . . . . . . . . . . . . . Hover . | . . . . . . . . . . . . . . . . . . . . . . . . . . . . . . . . . . . . Flight 50001 | . . . 1553 585 1370 602 1650 916 2377 1819 1035 1318 1042 2954 959 1198 84 924 3225 866 859 3496 632 2199 923 911 173 323 218 963 1068 1085 5531 747 6396 Fastest Speed 7 | 50 90 90 26 26 26 26 26 26 23 23 23 23 23 20 20 20 20 20 20 21 21 21 21 21 21 21 21 21 21 21 21 18 15 15 7 Average Speed 23 | 88 90 90 27 26 27 26 26 26 24 23 23 23 23 22 20 20 20 20 21 21 21 21 21 21 21 21 21 21 21 21 21 18 17 15 14 Slowest Speed 170 | 90 90 90 106 26 106 26 29 26 28 23 23 23 23 165 20 20 20 20 170 21 21 21 21 21 21 21 21 21 21 21 21 21 23 15 15 Overloaded Moves 450 | . . . . . . . . . . . . . . . . . . . . . . . . . . . . . . . . . . . 450 Propulsion Burnouts . | . . . . . . . . . . . . . . . . . . . . . . . . . . . . . . . . . . . . Robots Hopped 218 | . . . 15 14 . 9 30 . 22 1 . . . 13 . . . . 16 . 1 5 . 10 . . . . 3 5 23 5 10 1 35 Potential Cave-ins 22 | . . . . . . . . . . . . . . . . . . . . . 1 5 . 4 . . . . . . 3 . . 9 . Cave-ins Triggered . | . . . . . . . . . . . . . . . . . . . . . . . . . . . . . . . . . . . . Exploration Rate (%) 79 | 3 97 98 93 98 89 98 96 90 56 99 87 90 98 72 94 99 72 95 72 95 84 98 88 77 97 96 62 74 10 80 34 93 89 17 67 Regions Visited 35 Branch Regions 24 Pre-discovered Areas 20 | . . . 2 . . . 2 . 4 . 2 . 1 . . . 1 . 1 . 2 . . 1 . 1 3 . . . . . . . . Known Exits Taken 28 | . 1 . . . . . 1 . 1 1 1 1 1 1 1 1 1 1 1 1 1 1 1 1 1 1 1 1 1 1 1 1 1 1 . Unknown Exits Taken 6 | 1 . 1 1 1 1 1 . . . . . . . . . . . . . . . . . . . . . . . . . . . . . Scrap Searched 49 | . . 1 . 1 . 1 . . . 10 3 . 4 . 4 . . 5 . 4 4 . 5 . 3 4 . . . . . . . . . Spaces Dug 564 | . . . . . 1 . . . 9 35 . . 4 85 49 1 . 8 164 1 4 4 12 52 4 . . 3 4 16 11 16 45 15 21 Terrain Destroyed 5385 | . 15 . . . 6 3 55 . 93 58 . 33 36 942 70 37 . 41 976 35 40 224 36 1414 44 48 . 58 5 51 127 70 319 92 457 Melee . | . . . . . . . . . . . . . . . . . . . . . . . . . . . . . . . . . . . . Projectile 2630 | . . . . . 6 3 55 . 56 58 . 30 36 216 70 37 . 41 232 35 40 183 36 317 44 48 . 58 5 41 127 70 319 67 400 AOE 2755 | . 15 . . . . . . . 37 . . 3 . 726 . . . . 744 . . 41 . 1097 . . . . . 10 . . . 25 57 Terrain Rammed . | . . . . . . . . . . . . . . . . . . . . . . . . . . . . . . . . . . . . Walls Destroyed . | . . . . . . . . . . . . . . . . . . . . . . . . . . . . . . . . . . . . Machines Disabled . | . . . . . . . . . . . . . . . . . . . . . . . . . . . . . . . . . . . . Actions | -11 -10 -10 -9 -9 -9 -8 -8 -8 -7 -7 -7 -7 -6 -6 -6 -6 -6 -5 -5 -5 -5 -5 -4 -4 -4 -4 -4 -3 -3 -3 -2 -2 -2 -1 -1 --------- Run | Yrd Mat Min Mat Min Exi Min Mat Gar Fac Low Zio Dee Pro Fac Low Low Dat Pro Fac Upp Upp War Pro Fac Upp Upp Zhi Pro Res Tes Res Qua Frg Acc Com Total 61382 | 68 1301 855 1992 656 1606 617 1767 1185 2580 1983 1148 1570 1192 3549 1000 1405 85 1038 3931 996 953 4872 658 2626 995 954 213 406 222 1059 1304 1328 6839 865 7564 Wait 4426 | . 142 37 185 82 52 12 70 77 99 110 112 188 90 199 9 137 2 79 290 89 32 726 6 39 23 9 21 20 . 24 34 155 547 27 702 Move 51453 | 50 1037 744 1570 556 1369 585 1591 913 2332 1816 1034 1317 1041 2928 958 1197 83 923 3219 865 856 3488 631 2179 922 910 172 322 211 952 1025 1074 5510 744 6329 Hop 197 | . . . 12 14 . 7 28 . 22 1 . . . 12 . . . . 14 . 1 2 . 9 . . . . 3 5 19 5 10 1 32 Pick Up 79 | . 4 . 3 . 21 . 1 . 1 7 . 2 . 6 2 . . . 1 1 . 3 . . . . . . . . 1 1 12 1 12 Fast Attach 112 | 8 2 . 6 . 24 . 2 2 2 1 1 2 . . . . . . 6 1 4 1 . 1 1 . 2 . 1 10 . 3 12 1 19 Attach 15 | . 1 1 . . 3 . . . . . . . . 2 . . . . . 1 1 . . . . . . . . . 1 1 1 1 2 Detach 8 | . . . . . 3 . . . . . . 2 . . . . . . . . 1 . . . 1 . . . . . . 1 . . . Swap 205 | . 5 1 18 2 7 . 3 . 8 4 . 15 3 19 . . . . 7 . 3 25 . 2 1 . 3 . 2 2 8 7 55 . 5 Drop 183 | . 1 . 13 . 47 . . . 6 7 1 5 . 5 2 . . . 10 1 4 5 . . . . 2 . . 9 1 4 27 3 30 Fire 3332 | 10 79 59 136 2 15 7 58 66 75 30 . 33 33 304 25 43 . 26 305 27 36 443 18 340 32 30 . 44 5 42 147 46 427 59 330 Melee 98 | . . . . . 42 . . . . . . . 4 3 1 . . 1 1 1 . 13 1 1 . 1 13 . . . 11 1 . 4 . Ram . | . . . . . . . . . . . . . . . . . . . . . . . . . . . . . . . . . . . . Kick . | . . . . . . . . . . . . . . . . . . . . . . . . . . . . . . . . . . . . Crush . | . . . . . . . . . . . . . . . . . . . . . . . . . . . . . . . . . . . . Escape Stasis 221 | . . . . . . . . 107 . . . . . . . . . . . . . . . . . . . . . . . 22 76 5 11 Rewire 109 | . . . . . . . . 4 12 . . . 10 5 . 18 . . 11 . . 46 . . . . . . . 3 . . . . . Trap 4 | . . . . . . . . . . 4 . . . . . . . . . . . . . . . . . . . . . . . . . Miscellaneous 940 | . 30 13 49 . 23 6 14 16 23 3 . 6 11 66 3 10 . 9 67 10 15 120 2 55 15 4 . 20 . 12 57 8 162 19 92 Route ------- -11/Scrapyard -10/Materials (discovered 4 exits: *Mat x3 / *Min) -10/Mines (discovered 2 exits: *Mat x2) -9/Materials (discovered 5 exits: *Mat x3 / *Min x2) -9/Mines (discovered 4 exits: *Mat x2 / *Exi / *Zio) -9/Exiles -8/Mines (discovered 2 exits: *Mat x2) -8/Materials (discovered 6 exits: *Fac x3 / *Sto x2 / Gar) -8/Garrison (discovered 3 exits: *Fac x3) -7/Factory (discovered 4 exits: *Fac x2 / *Low x2) -7/Lower Caves (discovered 2 exits: *Low / *Zio) -7/Zion (discovered 2 exits: *Dee / [*Pro]) -7/Deep Caves -6/Proximity Caves -6/Factory (discovered 4 exits: *Fac x2 / *Low x2) -6/Lower Caves -6/Lower Caves (discovered 2 exits: *Fac / *Dat) -6/Data Miner -5/Proximity Caves -5/Factory (discovered 5 exits: *Fac x3 / *Upp x2) -5/Upper Caves -5/Upper Caves -5/Warlord -4/Proximity Caves -4/Factory (discovered 8 exits: *Res x4 / *Upp x2 / *Ext x2) -4/Upper Caves -4/Upper Caves (discovered 2 exits: *Res / *Zhi) -4/Zhirov -3/Proximity Caves -3/Research (discovered 3 exits: Arm / *Tes x2) -3/Testing -2/Research (discovered 3 exits: *Acc / *Qua x2) -2/Quarantine (discovered 3 exits: *Acc / *Sec / *Frg) -2/Protoforge -1/Access -1/Command Free Derelict Territories History --------- Turn | Location | Event 1 | -11/Scrapyard | Upgraded with Power slot (x1) 1 | -11/Scrapyard | Upgraded with Propulsion slot (x1) 1 | -11/Scrapyard | Upgraded with Utility slot (x1) 1 | -11/Scrapyard | Upgraded with Weapon slot (x1) 13 | -11/Scrapyard | Discovered new exit (range 15) 88 | -11/Scrapyard | Entered Materials 232 | -10/Materials | Discovered new exit (range 7) 298 | -10/Materials | Identified exit to Mines 520 | -10/Materials | Build established: Scavenger-Mutant 544 | -10/Materials | Discovered new exit (range 7) 629 | -10/Materials | Discovered new exit (range 8) 745 | -10/Materials | Reached level 2 760 | -10/Materials | Upgraded with Utility slot (x2) 771 | -10/Materials | Discovered new exit (range 10) 1119 | -10/Materials | Reached level 3 1125 | -10/Materials | Upgraded with Weapon slot (x1) 1428 | -10/Materials | Build established: Scavenger-Tank 1432 | -10/Materials | Entered Mines 1433 | -10/Mines | Assembled infested the area 1433 | -10/Mines | Met a Derelict bent on vengeance 1438 | -10/Mines | Assisted by a Guerilla fighting off Assembled 1468 | -10/Mines | Received a Mining Laser from a helpful Derelict 1659 | -10/Mines | Core integrity fell below 50% 1720 | -10/Mines | Received a Rocket Launcher from a helpful Derelict 1833 | -10/Mines | Discovered new exit (range 14) 1938 | -10/Mines | Reached level 4 2074 | -10/Mines | Discovered new exit (range 9) 2158 | -10/Mines | Learned Materials terminal intel 2172 | -10/Mines | Found a damaged Exp. Sensor Array with a note attached 2311 | -10/Mines | Entered Materials 2312 | -9/Materials | Loaded intel: 12 terminal locations 2313 | -9/Materials | Reached level 5 2375 | -9/Materials | Upgraded with Propulsion slot (x2) 2398 | -9/Materials | Discovered new exit (range 5) 2454 | -9/Materials | Core integrity fell below 50% 2524 | -9/Materials | Reached level 6 2623 | -9/Materials | Discovered new exit (range 3) 2690 | -9/Materials | Build established: Scavenger-Sprinter 2717 | -9/Materials | Discovered new exit (range 10) 2738 | -9/Materials | Discovered new exit (range 16) 2781 | -9/Materials | Reached level 7 2952 | -9/Materials | Discovered new exit (range 14) 2963 | -9/Materials | Reached level 8 3111 | -9/Materials | First assault squad dispatched 3152 | -9/Materials | Destroyed 9 combat bots 3195 | -9/Materials | Reached level 9 3286 | -9/Materials | Destroyed 7 combat bots 3338 | -9/Materials | Sterilization system engaged 3338 | -9/Materials | Non-combat units ordered to evacuate 3372 | -9/Materials | Upgraded with Utility slot (x1) 3427 | -9/Materials | Entered Mines 3450 | -9/Mines | Learned Materials emergency access door positions 3453 | -9/Mines | A Derelict revealed a hidden shortcut to a safe place 3513 | -9/Mines | Learned Materials terminal intel 3517 | -9/Mines | Deemed a non-threat by the Exiles lab entrance 3531 | -9/Mines | Discovered new exit (range 3) 3536 | -9/Mines | Found the Drone Emporium 3536 | -9/Mines | Found Prototype Device 3536 | -9/Mines | Identified Sensor Drone Bay 3567 | -9/Mines | Discovered new exit (range 8) 3570 | -9/Mines | Learned location of 1 exit from Lower Caves 3597 | -9/Mines | Build established: Hacker-Sprinter 3628 | -9/Mines | Discovered new exit (range 5) 3670 | -9/Mines | Entered Exiles 3670 | -9/Exiles | Accompanied by 2 allies 3678 | -9/Exiles | Met 8R-AWN 3682 | -9/Exiles | Met EX-HEX 3690 | -9/Exiles | Met EX-BIN 3693 | -9/Exiles | Reached level 10 3693 | -9/Exiles | Aligned with FarCom system 3693 | -9/Exiles | Given EX-Vault access code 3700 | -9/Exiles | Led the pair of lost Derelicts to a safe place 3700 | -9/Exiles | Opened EX-Vault 3701 | -9/Exiles | Upgraded with Weapon slot (x1) 3703 | -9/Exiles | Found XL Autogun Array 3716 | -9/Exiles | Warned to stay clear of 0b10 Research branches 3723 | -9/Exiles | Met EX-DEC 3876 | -9/Exiles | Found Longsword +1 3984 | -9/Exiles | Attacked by the Exiles 4108 | -9/Exiles | Destroyed 8R-AWN 4124 | -9/Exiles | Found Prototype Device 4124 | -9/Exiles | Identified AS-neutralizer No. 17b 4135 | -9/Exiles | Found Prototype Ballistic Gun 4136 | -9/Exiles | Found Prototype Ballistic Gun 4141 | -9/Exiles | Identified 8R-AWN's Boregun (x2) 4181 | -9/Exiles | Destroyed EX-DEC 4187 | -9/Exiles | Found Prototype Energy Gun 4187 | -9/Exiles | Identified AWS/EX-DEC 4254 | -9/Exiles | Destroyed EX-HEX 4286 | -9/Exiles | Destroyed EX-BIN 4289 | -9/Exiles | Found Prototype Device 4289 | -9/Exiles | Identified System Purifier 4302 | -9/Exiles | Found Prototype Processor 4302 | -9/Exiles | Identified Exp. Core Analyzer 4338 | -9/Exiles | Discovered new exit (range 10) 4340 | -9/Exiles | Left Exiles lab with XL Autogun Array 4340 | -9/Exiles | Entered Mines 4343 | -8/Mines | Found a Scrap Suit stashed away for nefarious purposes 4349 | -8/Mines | Discovered new exit (range 5) 4439 | -8/Mines | Destroyed 7 combat bots 4490 | -8/Mines | Discovered new exit (range 10) 4522 | -8/Mines | Entered Materials 4524 | -8/Materials | Loaded intel: 12 terminal locations 4524 | -8/Materials | Reached level 11 4558 | -8/Materials | Reached level 12 4663 | -8/Materials | Discovered new exit (range 7) 4685 | -8/Materials | Discovered new exit (range 7) 4729 | -8/Materials | Identified exit to Storage 4790 | -8/Materials | Discovered new exit (range 12) 4879 | -8/Materials | Destroyed 9 combat bots 4957 | -8/Materials | Reached level 13 4959 | -8/Materials | Discovered new exit (range 5) 5081 | -8/Materials | Garrison activated, responded to threat 5102 | -8/Materials | Identified exit to Garrison 5102 | -8/Materials | Entered Garrison 5132 | -8/Garrison | Triggered checkpoint 5175 | -8/Garrison | Discovered new exit (range 15) 5202 | -8/Garrison | Triggered checkpoint 5228 | -8/Garrison | Triggered checkpoint 5250 | -8/Garrison | Identified exit to Factory 5294 | -8/Garrison | Reached level 14 5317 | -8/Garrison | Destroyed 11 combat bots 5365 | -8/Garrison | Discovered exit to Factory (range 2) 5370 | -8/Garrison | Spotted B-75 Beast 5370 | -8/Garrison | Spotted B-75 Beast 5378 | -8/Garrison | Triggered checkpoint 5378 | -8/Garrison | Destroyed 7 combat bots 5382 | -8/Garrison | Destroyed B-75 Beast 5385 | -8/Garrison | Destroyed B-75 Beast 5416 | -8/Garrison | Triggered checkpoint 5442 | -8/Garrison | Discovered exit to Factory (range 8) 5497 | -8/Garrison | Attempted to access garrison exit controls, blocked by remote lockdown 5527 | -8/Garrison | Attempted to access garrison exit controls, blocked by remote lockdown 5562 | -8/Garrison | Triggered checkpoint 5566 | -8/Garrison | Triggered checkpoint 5613 | -8/Garrison | Entered Factory 5613 | -7/Factory | Accompanied by 2 allies 5615 | -7/Factory | Reached level 15 5688 | -7/Factory | Discovered new exit (range 14) 5708 | -7/Factory | Upgraded with Utility slot (x1) 5733 | -7/Factory | Identified exit to Lower Caves 5851 | -7/Factory | Upgraded with Propulsion slot (x1) 5954 | -7/Factory | Garrison activated, responded to threat 5955 | -7/Factory | Garrison activated, responded to threat 5961 | -7/Factory | Discovered new exit (range 18) 6005 | -7/Factory | Destroyed 8 combat bots 6070 | -7/Factory | Reached level 16 6114 | -7/Factory | Identified exit to Factory 6223 | -7/Factory | Destroyed 16 combat bots 6243 | -7/Factory | Discovered exit to Factory (range 16) 6405 | -7/Factory | Entered Lower Caves 6405 | -7/Lower Caves | Accompanied by 2 allies 6406 | -7/Lower Caves | Identified exit to Lower Caves 6440 | -7/Lower Caves | Reached level 17 6443 | -7/Lower Caves | Upgraded with Weapon slot (x1) 6495 | -7/Lower Caves | Learned location of 1 exit from Lower Caves 6524 | -7/Lower Caves | Learned Factory emergency access door positions 6836 | -7/Lower Caves | Learned 4 Factory zone layouts 6862 | -7/Lower Caves | A Derelict revealed a hidden shortcut to a safe place 6864 | -7/Lower Caves | Identified exit to Zion 6980 | -7/Lower Caves | Entered Zion 6980 | -7/Zion | Accompanied by 2 allies 6999 | -7/Zion | Discovered new exit (range 12) 7005 | -7/Zion | Acquired unknown access codes intercepted by a Zionite 7010 | -7/Zion | System corruption cleaned by Quarantine Array 7060 | -7/Zion | Given the Hacking Drone Bay 7071 | -7/Zion | Learned location of Warlord (-5) 7080 | -7/Zion | Found CR-A16's Pointy Stick 7174 | -7/Zion | Opened final containment barrier to the Deep Caves 7177 | -7/Zion | Discovered new exit (range 3) 7177 | -7/Zion | Saw the warning signs outside the Deep Caves entrance 7178 | -7/Zion | Identified exit to Deep Caves 7307 | -7/Zion | Met Imprinter 7332 | -7/Zion | Entered Deep Caves 7332 | -7/Deep Caves | Accompanied by 2 allies 7424 | -7/Deep Caves | Attacked by Z-Imprinter 7427 | -7/Deep Caves | Destroyed Z-Imprinter 7476 | -7/Deep Caves | Found Prototype Protection 7476 | -7/Deep Caves | Identified Zio. Weapon Casing 7504 | -7/Deep Caves | Z-Facility disabled 7574 | -7/Deep Caves | Spotted AG-43957 7579 | -7/Deep Caves | Spotted AG-45726 7586 | -7/Deep Caves | Destroyed 15 combat bots 7591 | -7/Deep Caves | Discovered new exit (range 7) 7643 | -7/Deep Caves | Found Zio. Weapon Casing 7646 | -7/Deep Caves | Found Zio. Weapon Casing 7734 | -7/Deep Caves | Identified exit to Proximity Caves 7883 | -7/Deep Caves | Entered Proximity Caves 7883 | -6/Proximity Caves | Accompanied by 2 allies 7905 | -6/Proximity Caves | Spotted B-75 Beast 7925 | -6/Proximity Caves | Reached level 18 7925 | -6/Proximity Caves | Revealed the true nature of CR-A16's Pointy Stick 7930 | -6/Proximity Caves | Destroyed B-75 Beast 7969 | -6/Proximity Caves | Attracted the attention of an 0b10 outpost 7978 | -6/Proximity Caves | Learned Factory emergency access door positions 7998 | -6/Proximity Caves | Destroyed 12 combat bots 8021 | -6/Proximity Caves | Discovered exit to Factory (range 6) 8052 | -6/Proximity Caves | Destroyed 7 combat bots 8070 | -6/Proximity Caves | Learned Factory emergency access door positions 8279 | -6/Proximity Caves | Entered Factory 8279 | -6/Factory | Accompanied by 4 allies 8281 | -6/Factory | Reached level 19 8283 | -6/Factory | Upgraded with Utility slot (x1) 8405 | -6/Factory | Garrison activated, responded to threat 8441 | -6/Factory | Destroyed 9 combat bots 8476 | -6/Factory | Discovered new exit (range 11) 8478 | -6/Factory | Identified exit to Factory 8497 | -6/Factory | Reached level 20 8533 | -6/Factory | Upgraded with Utility slot (x1) 8574 | -6/Factory | Discovered new exit (range 19) 8578 | -6/Factory | Identified exit to Lower Caves 8592 | -6/Factory | Spotted B-75 Beast 8594 | -6/Factory | Destroyed B-75 Beast 8782 | -6/Factory | Destroyed 7 combat bots 8860 | -6/Factory | Discovered exit to Factory (range 12) 8979 | -6/Factory | First assault squad dispatched 8995 | -6/Factory | Reached level 21 9032 | -6/Factory | Cargo convoy interrupted 9045 | -6/Factory | High security lockdown imminent 9092 | -6/Factory | Destroyed 20 combat bots 9111 | -6/Factory | Garrison activated, responded to threat 9125 | -6/Factory | High security lockdown engaged 9141 | -6/Factory | Upgraded with Weapon slot (x1) 9273 | -6/Factory | Destroyed 17 combat bots 9344 | -6/Factory | Reached level 22 9371 | -6/Factory | Destroyed 27 combat bots 9458 | -6/Factory | Sterilization system engaged 9458 | -6/Factory | Non-combat units ordered to evacuate 9483 | -6/Factory | Entered Lower Caves 9484 | -6/Lower Caves | Identified exit to Lower Caves 9493 | -6/Lower Caves | Destroyed 17 combat bots 9498 | -6/Lower Caves | Spotted B-75 Beast 9512 | -6/Lower Caves | Destroyed B-75 Beast 9524 | -6/Lower Caves | Learned 8 Factory zone layouts 9527 | -6/Lower Caves | Encountered a Warlord checkpoint 9630 | -6/Lower Caves | Attracted the attention of an 0b10 outpost 9709 | -6/Lower Caves | Entered another Lower Caves area 9718 | -6/Lower Caves | Learned Factory terminal intel 9783 | -6/Lower Caves | Destroyed 10 combat bots 9803 | -6/Lower Caves | Encountered a Warlord checkpoint 9817 | -6/Lower Caves | Discovered new exit (range 5) 9817 | -6/Lower Caves | Identified exit to Data Miner 9887 | -6/Lower Caves | Learned Factory stockpile data 9899 | -6/Lower Caves | Attracted the attention of an 0b10 outpost 9924 | -6/Lower Caves | Destroyed 7 combat bots 9967 | -6/Lower Caves | Discovered exit to Factory (range 11) 9995 | -6/Lower Caves | Destroyed 7 combat bots 10144 | -6/Lower Caves | Entered Data Miner 10144 | -6/Data Miner | Accompanied by 2 allies 10144 | -6/Data Miner | Discovered new exit (range 6) 10147 | -6/Data Miner | Met Data Miner 10154 | -6/Data Miner | Learned location of Section 7 (-2) 10154 | -6/Data Miner | Acquired the access code to Warlord's prototype stash 10156 | -6/Data Miner | Received God Mode back door access code from Data Miner 10161 | -6/Data Miner | Identified exit to Proximity Caves 10163 | -6/Data Miner | Entered Proximity Caves 10163 | -5/Proximity Caves | Accompanied by 2 allies 10175 | -5/Proximity Caves | Attracted the attention of an 0b10 checkpoint 10178 | -5/Proximity Caves | Reached level 23 10182 | -5/Proximity Caves | Upgraded with Weapon slot (x1) 10227 | -5/Proximity Caves | Spotted B-75 Beast 10228 | -5/Proximity Caves | Destroyed B-75 Beast 10242 | -5/Proximity Caves | Learned Factory stockpile data 10249 | -5/Proximity Caves | Destroyed 17 combat bots 10313 | -5/Proximity Caves | Discovered exit to Factory (range 12) 10457 | -5/Proximity Caves | Entered Factory 10457 | -5/Factory | Accompanied by 2 allies 10458 | -5/Factory | Identified exit to Upper Caves 10461 | -5/Factory | Loaded intel: 26 terminal locations 10597 | -5/Factory | Reached level 24 10618 | -5/Factory | Destroyed 7 combat bots 10657 | -5/Factory | Discovered new exit (range 8) 10730 | -5/Factory | Identified exit to Factory 10742 | -5/Factory | Discovered exit to Factory (range 19) 10757 | -5/Factory | First assault squad dispatched 10835 | -5/Factory | Destroyed 10 combat bots 10877 | -5/Factory | Garrison activated, responded to threat 10933 | -5/Factory | Discovered exit to Factory (range 19) 10970 | -5/Factory | Destroyed 12 combat bots 10972 | -5/Factory | Garrison activated, responded to threat 11019 | -5/Factory | Allied Derelicts emerged from ambush trap array 11082 | -5/Factory | Spotted B-75 Beast 11083 | -5/Factory | Reached level 25 11100 | -5/Factory | Destroyed B-75 Beast 11166 | -5/Factory | Build established: Scavenger-Sprinter 11263 | -5/Factory | Fabricated L-41 Fighter? 11271 | -5/Factory | Upgraded with Utility slot (x1) 11316 | -5/Factory | Cargo convoy interrupted 11327 | -5/Factory | Found Prototype Protection 11327 | -5/Factory | Identified Centrium Heavy Armor Plating 11341 | -5/Factory | Destroyed 16 combat bots 11468 | -5/Factory | High security lockdown imminent 11498 | -5/Factory | Destroyed 16 combat bots 11548 | -5/Factory | High security lockdown engaged 11622 | -5/Factory | Destroyed 8 combat bots 11681 | -5/Factory | Build established: Scavenger-Scout 11726 | -5/Factory | Destroyed 15 combat bots 11753 | -5/Factory | Sterilization system engaged 11753 | -5/Factory | Non-combat units ordered to evacuate 11787 | -5/Factory | Entered Upper Caves 11787 | -5/Upper Caves | Accompanied by 3 allies 11793 | -5/Upper Caves | Destroyed 12 combat bots 11827 | -5/Upper Caves | Ambushed by research squad 11837 | -5/Upper Caves | Attracted the attention of an 0b10 checkpoint 11841 | -5/Upper Caves | Learned Factory machine intel 11871 | -5/Upper Caves | Attracted the attention of an 0b10 base 11909 | -5/Upper Caves | Learned Factory emergency access door positions 11918 | -5/Upper Caves | Destroyed 12 combat bots 11925 | -5/Upper Caves | Spotted B-75 Beast 11938 | -5/Upper Caves | Destroyed B-75 Beast 11951 | -5/Upper Caves | Learned Factory stockpile data 11959 | -5/Upper Caves | Discovered new exit (range 9) 11961 | -5/Upper Caves | Identified exit to Upper Caves 11968 | -5/Upper Caves | Found Alien Artifact 12094 | -5/Upper Caves | Entered another Upper Caves area 12094 | -5/Upper Caves | Accompanied by 3 allies 12097 | -5/Upper Caves | Reached level 26 12143 | -5/Upper Caves | Attracted the attention of an 0b10 checkpoint 12197 | -5/Upper Caves | Encountered a Warlord checkpoint 12260 | -5/Upper Caves | Spotted 59-5WN(f) 12261 | -5/Upper Caves | Spotted RW-FNB(f) 12262 | -5/Upper Caves | Encountered a Master Thief 12262 | -5/Upper Caves | Encountered a Master Thief 12262 | -5/Upper Caves | Destroyed 59-5WN(f) 12262 | -5/Upper Caves | Spotted H7-VH1(f) 12262 | -5/Upper Caves | Spotted XX-2PF(f) 12262 | -5/Upper Caves | Spotted C7-85O(f) 12263 | -5/Upper Caves | Encountered a Master Thief 12263 | -5/Upper Caves | Encountered a Master Thief 12263 | -5/Upper Caves | Encountered a Master Thief 12263 | -5/Upper Caves | Identified Dimensional Node Initializer 12263 | -5/Upper Caves | Initialized slip node 12265 | -5/Upper Caves | Destroyed H7-VH1(f) 12268 | -5/Upper Caves | Destroyed C7-85O(f) 12271 | -5/Upper Caves | Destroyed XX-2PF(f) 12274 | -5/Upper Caves | Destroyed RW-FNB(f) 12288 | -5/Upper Caves | Discovered new exit (range 8) 12289 | -5/Upper Caves | Identified exit to Warlord 12367 | -5/Upper Caves | Entered Warlord 12367 | -5/Warlord | Accompanied by 3 allies 12375 | -5/Warlord | System corruption cleaned by Quarantine Array 12405 | -5/Warlord | Opened Warlord's prototype stash 12411 | -5/Warlord | Found Prototype Device 12411 | -5/Warlord | Identified Exp. Focal Shield 12414 | -5/Warlord | Found Prototype Processor 12414 | -5/Warlord | Identified Exp. Armor Integrity Analyzer 12529 | -5/Warlord | Warlord's base attacked by MAIN.C 12534 | -5/Warlord | Met Warlord 12554 | -5/Warlord | Spotted B-86 Titan 12555 | -5/Warlord | Destroyed B-86 Titan 12591 | -5/Warlord | Destroyed 9 combat bots 12596 | -5/Warlord | Discovered new exit (range 12) 12675 | -5/Warlord | Destroyed 11 combat bots 12762 | -5/Warlord | Destroyed 12 combat bots 12838 | -5/Warlord | Spotted Executioner 12842 | -5/Warlord | Destroyed Executioner 12845 | -5/Warlord | Destroyed Executioner 12870 | -5/Warlord | Destroyed 13 combat bots 12879 | -5/Warlord | Warlord forces counterattacked 12929 | -5/Warlord | Spotted Striker 12929 | -5/Warlord | Spotted Executioner 12932 | -5/Warlord | Destroyed Striker 12934 | -5/Warlord | Destroyed Executioner 12945 | -5/Warlord | Spotted Executioner 12951 | -5/Warlord | Destroyed Executioner 12972 | -5/Warlord | Found Prototype Device 12972 | -5/Warlord | Identified Adv. Kinecellerator 12976 | -5/Warlord | Destroyed 11 combat bots 13034 | -5/Warlord | Spotted Executioner 13034 | -5/Warlord | Spotted B-86 Titan 13042 | -5/Warlord | Destroyed B-86 Titan 13129 | -5/Warlord | Spotted Striker 13134 | -5/Warlord | Destroyed Striker 13163 | -5/Warlord | Destroyed 13 combat bots 13204 | -5/Warlord | Warlord base infiltrated, sounded retreat 13230 | -5/Warlord | Spotted B-75 Beast 13231 | -5/Warlord | Spotted B-86 Titan 13238 | -5/Warlord | Destroyed B-75 Beast 13270 | -5/Warlord | Lost 3 allies 13347 | -5/Warlord | Spotted Striker 13353 | -5/Warlord | Destroyed Striker 13381 | -5/Warlord | Destroyed 16 combat bots 13409 | -5/Warlord | Spotted Executioner 13409 | -5/Warlord | Spotted Executioner 13444 | -5/Warlord | Spotted Striker 13444 | -5/Warlord | Spotted Executioner 13444 | -5/Warlord | Spotted B-86 Titan 13445 | -5/Warlord | Spotted B-75 Beast 13446 | -5/Warlord | Destroyed Executioner 13450 | -5/Warlord | Destroyed Striker 13453 | -5/Warlord | Destroyed B-86 Titan 13458 | -5/Warlord | Destroyed B-75 Beast 13468 | -5/Warlord | Found Prototype Device 13468 | -5/Warlord | Identified Exp. Thermal Shield 13479 | -5/Warlord | Destroyed 10 combat bots 13485 | -5/Warlord | Lost 7 allies 13513 | -5/Warlord | Spotted Executioner 13517 | -5/Warlord | Destroyed Executioner 13548 | -5/Warlord | Destroyed 9 combat bots 13565 | -5/Warlord | Spotted B-75 Beast 13565 | -5/Warlord | Spotted B-75 Beast 13565 | -5/Warlord | Spotted B-86 Titan 13596 | -5/Warlord | Spotted B-86 Titan 13603 | -5/Warlord | Destroyed B-75 Beast 13604 | -5/Warlord | Destroyed B-86 Titan 13608 | -5/Warlord | Destroyed B-75 Beast 13609 | -5/Warlord | Destroyed B-86 Titan 13630 | -5/Warlord | Spotted B-75 Beast 13658 | -5/Warlord | Spotted Executioner 13658 | -5/Warlord | Reached level 27 13679 | -5/Warlord | Destroyed 13 combat bots 13685 | -5/Warlord | Spotted Executioner 13688 | -5/Warlord | Destroyed Executioner 13689 | -5/Warlord | Destroyed Executioner 13692 | -5/Warlord | Spotted B-86 Titan 13694 | -5/Warlord | Destroyed B-75 Beast 13706 | -5/Warlord | Destroyed B-86 Titan 13736 | -5/Warlord | Spotted Executioner 13766 | -5/Warlord | Destroyed Executioner 13783 | -5/Warlord | Spotted Striker 13787 | -5/Warlord | Destroyed Striker 13795 | -5/Warlord | Spotted Executioner 13800 | -5/Warlord | Destroyed Executioner 13830 | -5/Warlord | Spotted Striker 13844 | -5/Warlord | Spotted Executioner 13858 | -5/Warlord | Spotted Striker 13865 | -5/Warlord | Destroyed 33 combat bots 13867 | -5/Warlord | Destroyed Striker 13871 | -5/Warlord | Destroyed Striker 13871 | -5/Warlord | Destroyed Executioner 13907 | -5/Warlord | Destroyed 8 combat bots 13921 | -5/Warlord | Spotted Executioner 13925 | -5/Warlord | Destroyed Executioner 13948 | -5/Warlord | Destroyed 10 combat bots 13948 | -5/Warlord | Spotted Striker 13950 | -5/Warlord | Destroyed Striker 13986 | -5/Warlord | Spotted Striker 13987 | -5/Warlord | Destroyed Striker 13994 | -5/Warlord | Spotted B-75 Beast 13995 | -5/Warlord | Spotted Striker 14011 | -5/Warlord | Destroyed 10 combat bots 14024 | -5/Warlord | Spotted Striker 14043 | -5/Warlord | Destroyed Striker 14050 | -5/Warlord | Destroyed B-75 Beast 14059 | -5/Warlord | Destroyed Striker 14083 | -5/Warlord | Spotted B-86 Titan 14084 | -5/Warlord | Destroyed B-86 Titan 14091 | -5/Warlord | Spotted Striker 14099 | -5/Warlord | Destroyed Striker 14126 | -5/Warlord | Destroyed 26 combat bots 14337 | -5/Warlord | Found Prototype Energy Gun 14337 | -5/Warlord | Identified Vortex Rail 14341 | -5/Warlord | Found Vortex Rail 14366 | -5/Warlord | Found Prototype Processor 14366 | -5/Warlord | Identified Exp. Targeting Computer 14383 | -5/Warlord | Identified exit to Proximity Caves 14384 | -5/Warlord | Entered Proximity Caves 14488 | -4/Proximity Caves | Spotted B-86 Titan 14490 | -4/Proximity Caves | Destroyed B-86 Titan 14519 | -4/Proximity Caves | Discovered exit to Factory (range 17) 14540 | -4/Proximity Caves | Entered Factory 14543 | -4/Factory | Loaded intel: 297 machine locations 14594 | -4/Factory | Spotted B-86 Titan 14600 | -4/Factory | Destroyed B-86 Titan 14603 | -4/Factory | Garrison activated, responded to threat 14627 | -4/Factory | Discovered new exit (range 6) 14628 | -4/Factory | Identified exit to Extension 14654 | -4/Factory | Discovered new exit (range 18) 14658 | -4/Factory | Identified exit to Research 14664 | -4/Factory | Identified exit to Upper Caves 14679 | -4/Factory | Discovered exit to Research (range 4) 14719 | -4/Factory | Reached level 28 14814 | -4/Factory | Destroyed 19 combat bots 14884 | -4/Factory | High security lockdown imminent 14906 | -4/Factory | Destroyed 14 combat bots 14923 | -4/Factory | Upgraded with Weapon slot (x1) 14964 | -4/Factory | High security lockdown engaged 15005 | -4/Factory | Discovered exit to Research (range 16) 15069 | -4/Factory | Discovered exit to Research (range 17) 15124 | -4/Factory | Destroyed 35 combat bots 15138 | -4/Factory | Reached level 29 15215 | -4/Factory | Destroyed 18 combat bots 15301 | -4/Factory | Sterilization system engaged 15301 | -4/Factory | Non-combat units ordered to evacuate 15341 | -4/Factory | Entered Upper Caves 15341 | -4/Upper Caves | Spotted IV-HK2(f) 15341 | -4/Upper Caves | Spotted WH-DBI(f) 15343 | -4/Upper Caves | Encountered a Master Thief 15343 | -4/Upper Caves | Encountered a Master Thief 15349 | -4/Upper Caves | Destroyed 36 combat bots 15351 | -4/Upper Caves | Destroyed WH-DBI(f) 15351 | -4/Upper Caves | Spotted PA-09G(f) 15352 | -4/Upper Caves | Encountered a Master Thief 15373 | -4/Upper Caves | Destroyed IV-HK2(f) 15374 | -4/Upper Caves | Destroyed PA-09G(f) 15404 | -4/Upper Caves | Learned 12 Research zone layouts 15523 | -4/Upper Caves | Learned Research terminal intel 15526 | -4/Upper Caves | Destroyed 10 combat bots 15594 | -4/Upper Caves | Discovered new exit (range 3) 15595 | -4/Upper Caves | Identified exit to Upper Caves 15599 | -4/Upper Caves | Entered another Upper Caves area 15624 | -4/Upper Caves | Discovered exit to Research (range 6) 15773 | -4/Upper Caves | Spotted 8D-2MC(f) 15774 | -4/Upper Caves | Encountered a Master Thief 15774 | -4/Upper Caves | Spotted QZ-YCX(f) 15774 | -4/Upper Caves | Spotted MA-27Q(f) 15775 | -4/Upper Caves | Encountered a Master Thief 15775 | -4/Upper Caves | Encountered a Master Thief 15775 | -4/Upper Caves | Spotted VY-O1J(f) 15776 | -4/Upper Caves | Encountered a Master Thief 15776 | -4/Upper Caves | Spotted CQ-BBK(f) 15780 | -4/Upper Caves | Encountered a Master Thief 15789 | -4/Upper Caves | Destroyed CQ-BBK(f) 15792 | -4/Upper Caves | Destroyed QZ-YCX(f) 15795 | -4/Upper Caves | Destroyed 8D-2MC(f) 15803 | -4/Upper Caves | Destroyed MA-27Q(f) 15807 | -4/Upper Caves | Destroyed VY-O1J(f) 15823 | -4/Upper Caves | Discovered new exit (range 4) 15824 | -4/Upper Caves | Identified exit to Zhirov 15828 | -4/Upper Caves | Entered Zhirov 15828 | -4/Zhirov | Discovered new exit (range 3) 15832 | -4/Zhirov | Met Zhirov 15837 | -4/Zhirov | Learned location of Testing (-3) 15841 | -4/Zhirov | Zhirov requested help retrieving the SGEMP Prototype 15920 | -4/Zhirov | Found Alien Artifact 15920 | -4/Zhirov | Identified Integrated Dissipator 15920 | -4/Zhirov | Installed Integrated Dissipator, increased core heat dissipation (+20) 15932 | -4/Zhirov | Identified exit to Proximity Caves 15933 | -4/Zhirov | Entered Proximity Caves 15970 | -3/Proximity Caves | Spotted B-86 Titan 15972 | -3/Proximity Caves | Destroyed B-86 Titan 15985 | -3/Proximity Caves | Attracted the attention of an 0b10 checkpoint 16023 | -3/Proximity Caves | Destroyed 7 combat bots 16026 | -3/Proximity Caves | Attracted the attention of an 0b10 base 16049 | -3/Proximity Caves | Learned location of 2 exits from Lower Caves 16049 | -3/Proximity Caves | Learned 6 Lower Caves zone layouts 16049 | -3/Proximity Caves | Learned Armory emergency access door positions 16049 | -3/Proximity Caves | Learned Extension terminal intel 16053 | -3/Proximity Caves | Reached level 30 16068 | -3/Proximity Caves | Discovered exit to Research (range 17) 16072 | -3/Proximity Caves | Entered Research 16074 | -3/Research | Loaded intel: 20 terminal locations 16076 | -3/Research | Destroyed 12 combat bots 16085 | -3/Research | Identified exit to Armory 16085 | -3/Research | Identified exit to Testing 16096 | -3/Research | Spotted B-86 Titan 16102 | -3/Research | Found Prototype Device 16102 | -3/Research | Identified Exp. EM Disruption Field 16126 | -3/Research | Entered Testing 16144 | -3/Testing | Found Prototype Ballistic Cannon 16144 | -3/Testing | Identified Perforator 16170 | -3/Testing | Found Prototype Energy Gun 16170 | -3/Testing | Identified Tachyon Dispersion Ray 16198 | -3/Testing | Discovered new exit (range 12) 16202 | -3/Testing | Identified exit to Research 16215 | -3/Testing | Found Prototype Energy Cannon 16215 | -3/Testing | Identified Potential Cannon 16226 | -3/Testing | Central database locked down 16271 | -3/Testing | Spotted Striker 16272 | -3/Testing | Spotted Striker 16283 | -3/Testing | Found Prototype Launcher 16283 | -3/Testing | Identified Z-bomb Delivery System 16335 | -3/Testing | Found Prototype Energy Cannon 16335 | -3/Testing | Identified Disintegrator 16402 | -3/Testing | Found Prototype Energy Gun 16402 | -3/Testing | Identified Warp Gun 16422 | -3/Testing | Entered Research 16422 | -2/Research | Accompanied by 1 ally 16422 | -2/Research | Warlord forces began assault on 0b10 16424 | -2/Research | Reached level 31 16436 | -2/Research | Identified exit to Quarantine 16532 | -2/Research | Research machine network offline 16548 | -2/Research | Destroyed 9 combat bots 16602 | -2/Research | Reached level 32 16623 | -2/Research | Destroyed 11 combat bots 16673 | -2/Research | Discovered new exit (range 13) 16693 | -2/Research | Build established: Hacker-Scout 16703 | -2/Research | Spotted Striker 16705 | -2/Research | Spotted Striker 16705 | -2/Research | Destroyed Striker 16707 | -2/Research | Destroyed Striker 16730 | -2/Research | Spotted B-90 Cyclops 16735 | -2/Research | Spotted Executioner 16737 | -2/Research | Destroyed B-90 Cyclops 16740 | -2/Research | Destroyed Executioner 16758 | -2/Research | Found Exp. Core Analyzer 16759 | -2/Research | Upgraded with Utility slot (x1) 16761 | -2/Research | Destroyed 20 combat bots 16809 | -2/Research | Spotted B-90 Cyclops 16810 | -2/Research | Spotted Executioner 16811 | -2/Research | Destroyed B-90 Cyclops 16820 | -2/Research | High security lockdown imminent 16822 | -2/Research | Destroyed Executioner 16870 | -2/Research | Spotted B-90 Cyclops 16874 | -2/Research | Destroyed B-90 Cyclops 16877 | -2/Research | Spotted B-90 Cyclops 16881 | -2/Research | Reached level 33 16881 | -2/Research | Destroyed B-90 Cyclops 16886 | -2/Research | Entered Quarantine 16902 | -2/Quarantine | Destroyed 9 combat bots 16951 | -2/Quarantine | Garrison activated, responded to threat 17038 | -2/Quarantine | Destroyed 8 combat bots 17056 | -2/Quarantine | Discovered new exit (range 13) 17058 | -2/Quarantine | Identified exit to Access 17136 | -2/Quarantine | First assault squad dispatched 17241 | -2/Quarantine | Found Alien Artifact 17243 | -2/Quarantine | Identified Subatomic Replicator 17243 | -2/Quarantine | Used Subatomic Replicator to replicate XL Autogun Array 17287 | -2/Quarantine | Spotted Fortress 17294 | -2/Quarantine | Destroyed Fortress 17301 | -2/Quarantine | Found Prototype Device 17301 | -2/Quarantine | Identified Exp. Force Field 17320 | -2/Quarantine | Discovered new exit (range 18) 17322 | -2/Quarantine | Discovered new exit (range 5) 17322 | -2/Quarantine | Identified exit to Protoforge 17323 | -2/Quarantine | Identified exit to Section 7 17324 | -2/Quarantine | Entered Protoforge 17348 | -2/Protoforge | Spotted Hotshot 17375 | -2/Protoforge | Discovered exit to Access (range 12) 17377 | -2/Protoforge | Spotted Hotshot 17377 | -2/Protoforge | Spotted Hotshot 17377 | -2/Protoforge | Spotted Hotshot 17377 | -2/Protoforge | Spotted Hotshot 17378 | -2/Protoforge | Superfortress began startup sequence 17378 | -2/Protoforge | Destroyed Hotshot 17379 | -2/Protoforge | Destroyed Hotshot 17380 | -2/Protoforge | Destroyed Hotshot 17382 | -2/Protoforge | Destroyed Hotshot 17438 | -2/Protoforge | Destroyed 8 combat bots 17440 | -2/Protoforge | Spotted B-90 Cyclops 17440 | -2/Protoforge | Spotted Hotshot 17482 | -2/Protoforge | Spotted Hotshot 17482 | -2/Protoforge | Spotted Hotshot 17486 | -2/Protoforge | Spotted Hotshot 17519 | -2/Protoforge | Spotted Hotshot 17520 | -2/Protoforge | Destroyed Hotshot 17521 | -2/Protoforge | Destroyed Hotshot 17521 | -2/Protoforge | Destroyed Hotshot 17522 | -2/Protoforge | Destroyed Hotshot 17574 | -2/Protoforge | First assault squad dispatched 17580 | -2/Protoforge | Spotted Hotshot 17583 | -2/Protoforge | Destroyed Hotshot 17586 | -2/Protoforge | Spotted Hotshot 17587 | -2/Protoforge | Destroyed Hotshot 17590 | -2/Protoforge | Spotted Hotshot 17591 | -2/Protoforge | Destroyed Hotshot 17598 | -2/Protoforge | Destroyed Hotshot 17606 | -2/Protoforge | Reached level 34 17668 | -2/Protoforge | Spotted Hotshot 17679 | -2/Protoforge | Spotted AP7-3 17679 | -2/Protoforge | Spotted AP7-3 17698 | -2/Protoforge | Destroyed 25 combat bots 17760 | -2/Protoforge | Forge Plexus network access discovered 17766 | -2/Protoforge | Found Crosscalibrator 17769 | -2/Protoforge | Spotted Immortal 17769 | -2/Protoforge | Spotted Immortal 17770 | -2/Protoforge | Spotted Decapitator 17770 | -2/Protoforge | Spotted Decapitator 17770 | -2/Protoforge | Spotted Decapitator 17773 | -2/Protoforge | Destroyed Immortal 17776 | -2/Protoforge | Destroyed Immortal 17829 | -2/Protoforge | Found Faulty Cep. Fieldthrust Drive 17831 | -2/Protoforge | Found Faulty Cep. Fieldthrust Drive 17921 | -2/Protoforge | Destroyed Decapitator 17923 | -2/Protoforge | Destroyed Decapitator 17924 | -2/Protoforge | Destroyed Decapitator 17956 | -2/Protoforge | Spotted V750-u 17956 | -2/Protoforge | Spotted V924-o 17956 | -2/Protoforge | Spotted V915-b 17956 | -2/Protoforge | Spotted V616-c 17994 | -2/Protoforge | Destroyed V915-b 17996 | -2/Protoforge | Destroyed V750-u 17997 | -2/Protoforge | Destroyed V616-c 17999 | -2/Protoforge | Destroyed V924-o 18022 | -2/Protoforge | Found Cep. Matter Streamer 18031 | -2/Protoforge | Spotted Decapitator 18031 | -2/Protoforge | Spotted Decapitator 18031 | -2/Protoforge | Spotted V200-j 18032 | -2/Protoforge | Spotted Decapitator 18053 | -2/Protoforge | Spotted Decapitator 18056 | -2/Protoforge | Destroyed Decapitator 18074 | -2/Protoforge | Spotted V393-o 18074 | -2/Protoforge | Spotted V948-u 18076 | -2/Protoforge | Spotted V828-w 18076 | -2/Protoforge | Destroyed V948-u 18083 | -2/Protoforge | Destroyed V828-w 18085 | -2/Protoforge | Destroyed V393-o 18093 | -2/Protoforge | Found Prototype Device 18093 | -2/Protoforge | Identified Cep. Antimissile System 18097 | -2/Protoforge | Spotted Immortal 18112 | -2/Protoforge | Spotted Immortal 18115 | -2/Protoforge | Destroyed Immortal 18118 | -2/Protoforge | Destroyed Immortal 18120 | -2/Protoforge | Found Prototype Processor 18120 | -2/Protoforge | Identified Exp. Melee Analysis Suite 18125 | -2/Protoforge | Found Cep. Zero-point Core 18155 | -2/Protoforge | Found Exp. Kinecellerator 18159 | -2/Protoforge | Found Cep. Weapon Articulator 18163 | -2/Protoforge | Spotted AP7-3 18163 | -2/Protoforge | Spotted AP7-3 18206 | -2/Protoforge | Destroyed AP7-3 18208 | -2/Protoforge | Destroyed AP7-3 18221 | -2/Protoforge | Found Prototype Device 18221 | -2/Protoforge | Identified Exp. ECM Suite 18244 | -2/Protoforge | Found Prototype Device 18244 | -2/Protoforge | Identified Cep. Thermoelectric Network 18257 | -2/Protoforge | Found Cep. Dimensional Manipulator 18289 | -2/Protoforge | Additional patrols dispatched to research labs 18322 | -2/Protoforge | Destroyed 12 combat bots 18322 | -2/Protoforge | Spotted V922-h 18322 | -2/Protoforge | Spotted V682-a 18334 | -2/Protoforge | Spotted V218-z 18342 | -2/Protoforge | Destroyed V682-a 18348 | -2/Protoforge | Destroyed V218-z 18351 | -2/Protoforge | Destroyed V922-h 18357 | -2/Protoforge | Found Prototype Device 18357 | -2/Protoforge | Identified Exp. Thermal Defense Suite 18361 | -2/Protoforge | Found Prototype Device 18361 | -2/Protoforge | Identified Exp. Weapon Cycler 18482 | -2/Protoforge | Spotted Decapitator 18483 | -2/Protoforge | Destroyed Decapitator 18505 | -2/Protoforge | Destroyed Hotshot 18512 | -2/Protoforge | Core integrity fell below 50% 18512 | -2/Protoforge | Reached level 35 18512 | -2/Protoforge | High security lockdown imminent 18512 | -2/Protoforge | Destroyed Superfortress 18525 | -2/Protoforge | Upgraded with Utility slot (x1) 18536 | -2/Protoforge | Destroyed 14 combat bots 18538 | -2/Protoforge | Found Cep. RG22 Armor 18540 | -2/Protoforge | Found Cep. Beam Splitter 18556 | -2/Protoforge | Found Cep. Zero-point Core 18592 | -2/Protoforge | High security lockdown engaged 18664 | -2/Protoforge | Spotted EXE-6 18664 | -2/Protoforge | Spotted EXE-6 18667 | -2/Protoforge | Destroyed EXE-6 18667 | -2/Protoforge | Destroyed EXE-6 18681 | -2/Protoforge | Found Exp. Core Analyzer 18683 | -2/Protoforge | Found Exp. Kinecellerator 18693 | -2/Protoforge | Spotted Decapitator 18693 | -2/Protoforge | Spotted Decapitator 18694 | -2/Protoforge | Destroyed Decapitator 18694 | -2/Protoforge | Destroyed Decapitator 18696 | -2/Protoforge | Spotted EXE-6 18697 | -2/Protoforge | Spotted EXE-6 18700 | -2/Protoforge | Destroyed EXE-6 18701 | -2/Protoforge | Destroyed EXE-6 18740 | -2/Protoforge | Destroyed AP7-3 18741 | -2/Protoforge | Destroyed AP7-3 18772 | -2/Protoforge | Destroyed Hotshot 18778 | -2/Protoforge | Spotted Overlord 18779 | -2/Protoforge | Destroyed Overlord 18792 | -2/Protoforge | Found Exp. Active Sensor Suite 18800 | -2/Protoforge | Destroyed 9 combat bots 18802 | -2/Protoforge | Destroyed B-90 Cyclops 18812 | -2/Protoforge | Spotted Hotshot 18813 | -2/Protoforge | Destroyed Hotshot 18814 | -2/Protoforge | Spotted Hotshot 18814 | -2/Protoforge | Destroyed Hotshot 18814 | -2/Protoforge | Spotted Hotshot 18817 | -2/Protoforge | Spotted Hotshot 18819 | -2/Protoforge | Destroyed Hotshot 18819 | -2/Protoforge | Destroyed Hotshot 18820 | -2/Protoforge | Destroyed Hotshot 18852 | -2/Protoforge | Destroyed 7 combat bots 18885 | -2/Protoforge | Scanned by Researcher 18886 | -2/Protoforge | Destroyed Investigator 18930 | -2/Protoforge | Destroyed 18 combat bots 18982 | -2/Protoforge | Destroyed 18 combat bots 18984 | -2/Protoforge | Spotted Striker 18985 | -2/Protoforge | Destroyed Striker 18986 | -2/Protoforge | Destroyed Executioner 18987 | -2/Protoforge | Destroyed Striker 19055 | -2/Protoforge | Destroyed 24 combat bots 19128 | -2/Protoforge | Spotted Striker 19135 | -2/Protoforge | Destroyed Striker 19136 | -2/Protoforge | Spotted Striker 19137 | -2/Protoforge | Reached level 36 19137 | -2/Protoforge | Destroyed Striker 19140 | -2/Protoforge | Spotted Executioner 19140 | -2/Protoforge | Spotted Executioner 19154 | -2/Protoforge | Destroyed Executioner 19156 | -2/Protoforge | Destroyed Executioner 19156 | -2/Protoforge | Spotted Executioner 19158 | -2/Protoforge | Destroyed Executioner 19194 | -2/Protoforge | Destroyed 18 combat bots 19296 | -2/Protoforge | Found Transdimensional Reconstructor 19299 | -2/Protoforge | Found Cep. Nanofilaments [Conductive] 19299 | -2/Protoforge | Installed Cep. Nanofilaments [Conductive], 2 resistances modified: TH -15%, EM +25% 19380 | -2/Protoforge | Spotted Executioner 19380 | -2/Protoforge | Spotted Executioner 19381 | -2/Protoforge | Destroyed Executioner 19382 | -2/Protoforge | Destroyed Executioner 19467 | -2/Protoforge | Destroyed 50 combat bots 19473 | -2/Protoforge | Entered Access 19502 | -1/Access | Garrison activated, responded to threat 19545 | -1/Access | Destroyed 11 combat bots 19582 | -1/Access | Spotted B-99 Colossus 19585 | -1/Access | Destroyed B-99 Colossus 19604 | -1/Access | Spotted B-99 Colossus 19612 | -1/Access | Destroyed B-99 Colossus 19634 | -1/Access | High security lockdown imminent 19639 | -1/Access | Identified exit to Command 19663 | -1/Access | Destroyed 21 combat bots 19693 | -1/Access | Entered Command 19695 | -1/Command | Reached level 37 19711 | -1/Command | High security lockdown imminent 19748 | -1/Command | Disengaged cave seal 19751 | -1/Command | Welcomed Warlord to Command 19791 | -1/Command | High security lockdown engaged 19856 | -1/Command | Spotted Executioner 19856 | -1/Command | Destroyed Executioner 19857 | -1/Command | Spotted Executioner 19858 | -1/Command | Destroyed Executioner 19879 | -1/Command | Destroyed 26 combat bots 19897 | -1/Command | Spotted Executioner 19898 | -1/Command | Destroyed Executioner 19920 | -1/Command | Spotted Executioner 19921 | -1/Command | Destroyed Executioner 19928 | -1/Command | Spotted B-99 Colossus 19930 | -1/Command | Destroyed B-99 Colossus 19951 | -1/Command | Destroyed 23 combat bots 19974 | -1/Command | Spotted Striker 19974 | -1/Command | Destroyed Striker 19976 | -1/Command | Spotted Striker 19977 | -1/Command | Destroyed Striker 19984 | -1/Command | Reached level 38 19986 | -1/Command | Spotted Executioner 19986 | -1/Command | Spotted Executioner 19987 | -1/Command | Destroyed Executioner 19991 | -1/Command | Spotted Striker 20012 | -1/Command | Destroyed 17 combat bots 20013 | -1/Command | Destroyed Striker 20016 | -1/Command | Destroyed Executioner 20020 | -1/Command | Found Exp. Core Analyzer 20110 | -1/Command | Destroyed 7 combat bots 20140 | -1/Command | Phase Generator disabled 20194 | -1/Command | Destroyed 22 combat bots 20320 | -1/Command | Destroyed 11 combat bots 20353 | -1/Command | Spotted Striker 20355 | -1/Command | Destroyed Striker 20358 | -1/Command | Destroyed Executioner 20361 | -1/Command | Spotted Executioner 20364 | -1/Command | Destroyed Executioner 20390 | -1/Command | Destroyed 29 combat bots 20415 | -1/Command | Spotted B-99 Colossus 20417 | -1/Command | Destroyed B-99 Colossus 20449 | -1/Command | Spotted B-99 Colossus 20453 | -1/Command | Destroyed B-99 Colossus 20474 | -1/Command | Destroyed 8 combat bots 20512 | -1/Command | Destroyed 8 combat bots 20546 | -1/Command | Spotted Striker 20547 | -1/Command | Destroyed Striker 20551 | -1/Command | Destroyed Investigator 20551 | -1/Command | Spotted Executioner 20554 | -1/Command | Destroyed Executioner 20578 | -1/Command | Destroyed 13 combat bots 20634 | -1/Command | Spotted Striker 20636 | -1/Command | Destroyed Striker 20658 | -1/Command | Destroyed 13 combat bots 20713 | -1/Command | Spotted Striker 20714 | -1/Command | Destroyed Striker 20726 | -1/Command | Spotted Striker 20726 | -1/Command | Destroyed Striker 20730 | -1/Command | Spotted Striker 20730 | -1/Command | Destroyed Striker 20751 | -1/Command | Destroyed 15 combat bots 20933 | -1/Command | Spotted Striker 20935 | -1/Command | Spotted Executioner 20935 | -1/Command | Destroyed Striker 20936 | -1/Command | Destroyed Executioner 20963 | -1/Command | Destroyed 13 combat bots 20965 | -1/Command | Spotted M Guard 20966 | -1/Command | Spotted Combat Programmer 20966 | -1/Command | Spotted M Guard 20979 | -1/Command | Spotted Combat Programmer 20980 | -1/Command | Destroyed Combat Programmer 20981 | -1/Command | Destroyed Combat Programmer 20995 | -1/Command | Destroyed M Guard 20998 | -1/Command | Destroyed M Guard 20998 | -1/Command | All MAIN.C guards destroyed 21114 | -1/Command | Found Prototype Launcher 21114 | -1/Command | Identified Hellfire Missile Launcher 21116 | -1/Command | Found Prototype Launcher 21116 | -1/Command | Identified Adv. Micro-nuke Launcher 21145 | -1/Command | Spotted Alpha 7 21145 | -1/Command | Spotted Striker 21145 | -1/Command | Spotted Executioner 21145 | -1/Command | Spotted Executioner 21145 | -1/Command | Spotted Alpha 7 21145 | -1/Command | Spotted Striker 21145 | -1/Command | Spotted Executioner 21152 | -1/Command | Destroyed Striker 21152 | -1/Command | Destroyed Striker 21154 | -1/Command | Destroyed Alpha 7 21157 | -1/Command | Destroyed Alpha 7 21157 | -1/Command | Destroyed Executioner 21159 | -1/Command | Reached level 39 21159 | -1/Command | Destroyed Executioner 21161 | -1/Command | Destroyed Executioner 21163 | -1/Command | Spotted B-99 Colossus 21165 | -1/Command | Destroyed B-99 Colossus 21171 | -1/Command | Found Prototype Processor 21171 | -1/Command | Identified Exp. Target Analyzer 21177 | -1/Command | Found Prototype Ballistic Gun 21177 | -1/Command | Identified Multirail 21186 | -1/Command | Destroyed 8 combat bots 21306 | -1/Command | Found Prototype Reactor 21306 | -1/Command | Identified Zero-point Reactor 21316 | -1/Command | Found Zero-point Reactor 21333 | -1/Command | Found Gamma Bomb Array 21678 | -1/Command | Met MAIN.C 21690 | -1/Command | 0b10 Conduit disabled 21693 | -1/Command | Destroyed MAIN.C Shell 21694 | -1/Command | MAIN.C activated Command garrisons 21738 | *** | Establishing Free Derelict Territories! Last Messages --------------- Warlord: Not so powerful now, are you, MAIN.C! 21720_ NZ-EMU(K) destroyed. 21721_ Acquired 30 matter. 21722_ Acquired 13 matter. 21723_ Acquired 17 matter. 21724_ KECUK> V/TT WL&DOG9B HRJYVPF 21724_ T3-GMO(p) destroyed. 21727_ 25-7JC(p) destroyed. 21730_ MZ-4TH(p) destroyed. 21735_ WV-63U(M) destroyed. 21737_ Blast Slug penetrates MAIN.C. 21737_ MAIN.C: "I hope you know you're still going to DIE HERE WITH ME!" 21737_ MAIN.C destroyed. 21737_ Blast Slug penetrates Wall. Warlord: Victory! Sure there's still lots to do, but without MAIN.C at the helm 0b10 doesn't stand a chance. We've got this... Map ----- +----------------------------------------------------+ | ???????????? ? #????##%=] ### * % # | | ??????????? ? #?????!![ ?## " # | | ?????????? ? #????## #??### ""## | | ?????????# ?? #????? ???#" % """# | | ?????????# ?? #?????# #???## %" | | ?????????# ?? #????? ????# m " | | ??????????##??######?????? ????# """ !! | | ??????????????#######???? ^ ???## ! # # !! | | ??????????????# #???? """""" ??#" =[% "!= !! | | ??????????????# #???? ?????? ??## * !##" = | | ??????????????# #??? ?????? ???# %*=""" =! | | ??????????????# #???? ?????? ???## *%! "k[[ | | ??????????????# #???????????? ???#" * """ | | ??????????????# #????????????????#" =[!!" #"## | | ??????????????# #????????????????##"!%!"### #? | | ??????????????# #????????????????# ]%!=##?#/#? | | ??????????????# #????????????????## "[##?##### | | ??????????????# #????????????????# #/#? =%==# | | ?#####?#####??# #????###???????###### # [# | | ?# #?# #### #??### #???????# #??#=#* ! # | | ## W ### W #;###+##+####;#;#########;#### + # | | ]! = = ; % i =!#[ # | | ! !! ; =%!% M i #?? # | | !!! ; %!%$ L Wi i #????### | | ! [% % % i #??????? | | ]! ! % @ [M% ####???? | | ## W ### W #####;####;## !== #???? | | ?# #?# #???### #M ##### | | ?#####?#####?????# ; | | ?????????????????# # ! | | ?????????????????# # = | | ?????????????????# # ##;###;;####+##+#" "" | | ?????????????????# # ### ### "" ## | | ????????????###?## # #??# ##[ "" #? | | ????????????# ###" # #####;#=! "" "# #? | | ?????????####"##"# # ! ;=[""" ## #? | | ?????????# "#######+#+########; !"""% ## #? | | ?????????# ## #!==! [ ## #? | | ?????????# ## #[=[%%[ ## ## | | ?????????# ## # =[=!* ## # | | ?????????# ## #"""########+" | | ?????????# ## #%## !!"# | | ?????????# ## #!## / =## | | ?????????# ## # ## = #? | | ?????????####"#####################"!"# " #? | | ??????????# """!=[!# " #? | | ??????????# ""T"" *# #? | | ??????????# "" " " #? | | ??????????# !*! " #? | | ?????????##"[! !! " #? | +----------------------------------------------------+ Best States ------------- Heat Dissipation 179 Energy Generation 71 Energy Capacity 1520 Matter Stores 550 Matter Capacity 550 Sight Range 24 Robot Scan Range 50 Terrain Scan Range 16 Terrain Scan Density 10 Cloak Strength 3 Additional Mass Support 30 Armor Coverage 825 Resistance: KI 35 Resistance: TH 80 Resistance: EX 35 Resistance: EM 45 Resistance: I 20 Resistance: S 20 Resistance: P 20 Weapon Shielding 100 Weapon Cycling 30 Evasion (%) 67 Targeting Accuracy 30 Core Analysis 8 Armor Integrity Analysis 50 Kinecelleration 66 Offensive Hacking 30 Defensive Hacking 5 Item Schematics ----------------- Mining Laser | -9/Materials | Extracted Datajack | -9/Materials | Extracted Particle Gun | -9/Materials | Extracted Hvy. EM Pulse Gun | -9/Materials | Extracted Aerolev Unit | -8/Materials | Extracted Com. Wheel | -8/Materials | Extracted Lrg. Battery | -8/Materials | Extracted Hcp. Matter Pod | -8/Materials | Extracted Kinecellerator | -7/Factory | Hacked Hvy. Laser | -7/Factory | Extracted Imp. Signal Interpreter | -7/Factory | Extracted Imp. EM Shotgun | -7/Factory | Extracted Powered Hammer | -7/Factory | Extracted Greatsword | -7/Factory | Extracted Riot Gun | -7/Zion | Free Battle Cannon | -7/Zion | Free Hvy. Riot Gun | -7/Zion | Free Barrage Gun | -7/Zion | Free Bore Cannon | -7/Zion | Free EM Disruption Field | -7/Zion | Archive Imp. Heavy Armor Plating | -7/Zion | Archive Hvy. Flak Cannon | -7/Zion | Archive Coolant Injector | -7/Zion | Archive Arm. Leg | -7/Zion | Archive Gauss Rifle | -7/Zion | Archive Neutrino Core | -7/Zion | Archive Energy Well | -7/Zion | Archive Imp. Deuterium Engine | -7/Zion | Archive Med. Treads | -7/Zion | Archive Proton Cannon | -7/Zion | Archive Adv. Terrain Scan Processor | -7/Zion | Archive Fusion Compressor | -7/Zion | Archive Adv. Assault Cannon | -7/Zion | Archive Field Propulsion Drive | -7/Zion | Archive Imp. Terrain Scan Processor | -6/Factory | Extracted Imp. Terrain Scanner | -6/Factory | Extracted Combat Drone Bay | -6/Data Miner | Free Lgt. Regenerative Plating | -6/Data Miner | Free Cld. Gravmag System | -6/Data Miner | Free Exp. Heat Sink | -6/Data Miner | Free Enh. Coil Gun | -6/Data Miner | Free Centrium Wheel | -6/Data Miner | Free Adv. Reaction Control System | -6/Data Miner | Free Dual-blade Saw | -6/Data Miner | Free Hacking Suite | -5/Factory | Extracted Matter Compressor | -5/Factory | Extracted VSS Leg | -5/Factory | Extracted Gyrokinetic Inverter | -5/Factory | Extracted Enh. Flexi-carbon Leg | -5/Factory | Extracted Power Amplifier | -5/Factory | Extracted Adv. Target Analyzer | -4/Factory | Downloaded Imp. Linear Gravjet | -4/Factory | Extracted Cmb. Gravmag System | -4/Factory | Extracted Assault Drone Bay | -4/Zhirov | Free Exp. Optical Array | -4/Zhirov | Free Imp. Arc Thrower | -4/Zhirov | Free Particle Accelerator | -2/Protoforge | Archive Cld. Q-thruster | -2/Protoforge | Archive Spectral Analyzer | -2/Protoforge | Archive Imp. Diametric Drive | -2/Protoforge | Archive Neutron Missile Launcher | -2/Protoforge | Archive Exp. Cloaking Device | -2/Protoforge | Archive Adv. Thermal Defense Suite | -2/Protoforge | Archive Hds. Centrium Wheel | -2/Protoforge | Archive Thermal Barrier | -2/Protoforge | Archive Centrium Medium Armor Plating | -2/Protoforge | Archive Com. Mass Driver | -2/Protoforge | Archive Cld. Field Propulsion Drive | -2/Protoforge | Archive Cld. Proton Cannon | -2/Protoforge | Archive Gravity Neutralizer | -2/Protoforge | Archive Adv. Variable Charge Gun | -2/Protoforge | Archive Adv. Matter Compressor | -2/Protoforge | Archive Exp. Biometal Medium Treads | -2/Protoforge | Archive Imp. Q-thruster | -2/Protoforge | Archive Ragnarok Missile Launcher | -2/Protoforge | Archive Exp. Power Amplifier | -2/Protoforge | Archive Graviton Reactor | -2/Protoforge | Archive Prc. Matter Filter | -2/Protoforge | Archive Robot Schematics ------------------ O-24 Administrator | -7/Zion | Archive G-47 Trooper | -7/Zion | Archive L-41 Fighter | -7/Zion | Archive X-62 Marksman | -6/Data Miner | Free E-15 Imp | -6/Data Miner | Free R-10 Processor | -6/Data Miner | Free H-66 Slayer | -6/Data Miner | Free M-22 Extractor | -6/Data Miner | Free C-65 Expert | -2/Protoforge | Archive K-01 Serf | -2/Protoforge | Archive Fabricated ------------ L-41 Fighter | x3 | -5/Factory | Preloaded Repaired ---------- Nothing Alien Tech Used ----------------- Dimensional Node Initializer Integrated Dissipator Subatomic Replicator Concept Nanofilaments [Conductive] Achievements -------------- None Challenges ------------ None RPGLIKE | -11 -10 -10 -9 -9 -9 -8 -8 -8 -7 -7 -7 -7 -6 -6 -6 -6 -6 -5 -5 -5 -5 -5 -4 -4 -4 -4 -4 -3 -3 -3 -2 -2 -2 -1 -1 --------- Run | Yrd Mat Min Mat Min Exi Min Mat Gar Fac Low Zio Dee Pro Fac Low Low Dat Pro Fac Upp Upp War Pro Fac Upp Upp Zhi Pro Res Tes Res Qua Frg Acc Com Levels Raised 38 | . 2 1 5 . 1 . 3 1 2 1 . . 1 4 . . . 1 2 . 1 1 . 2 . . . 1 . . 3 . 3 . 3 XP Earned 61595 | 4000 3740 1150 8108 363 169 1345 3642 1455 3735 318 152 357 2259 5042 138 319 73 918 3898 248 132 1973 371 2576 136 92 50 798 358 561 3556 601 4169 1185 3608 XP Spent 59460 | 3350 2700 . 8550 . 2650 . 2600 . 4700 3170 . . . 6225 930 . . 2000 3050 . . 950 . 2300 2600 . . . . 1400 2900 . 6285 . 3100 Upgrades 101 | 12 3 . 16 . 6 . 4 . 6 8 . . . 6 3 . . 1 4 . . 4 . 1 2 . . . . 2 1 . 13 . 9 Power Slot 1 | 1 . . . . . . . . . . . . . . . . . . . . . . . . . . . . . . . . . . . Propulsion Slot 4 | 1 . . 2 . . . . . 1 . . . . . . . . . . . . . . . . . . . . . . . . . . Utility Slot 10 | 1 2 . 1 . . . . . 1 . . . . 2 . . . . 1 . . . . . . . . . . . 1 . 1 . . Weapon Slot 7 | 1 1 . . . 1 . . . . 1 . . . 1 . . . 1 . . . . . 1 . . . . . . . . . . . Core Integrity 5 | . . . . . . . . . . . . . . . . . . . . . . . . . . . . . . . . . 5 . . Heat Dissipation 18 | 6 . . . . 4 . . . . 2 . . . . 3 . . . . . . . . . . . . . . . . . 3 . . Energy Generation 2 | . . . . . . . . . . . . . . . . . . . . . . . . . . . . . . . . . 2 . . Matter Storage 5 | . . . . . . . . . . 5 . . . . . . . . . . . . . . . . . . . . . . . . . Mass Support 4 | . . . 3 . . . . . . . . . . . . . . . . . . . . . 1 . . . . . . . . . . Inventory Capacity 4 | 2 . . . . 1 . . . . . . . . . . . . . . . . . . . 1 . . . . . . . . . . Sight Range 4 | . . . . . . . . . 4 . . . . . . . . . . . . . . . . . . . . . . . . . . Sensor Range 15 | . . . . . . . . . . . . . . 3 . . . . 3 . . 4 . . . . . . . . . . . . 5 Ranged Accuracy 4 | . . . 4 . . . . . . . . . . . . . . . . . . . . . . . . . . . . . . . . Hack Attack % 4 | . . . 2 . . . . . . . . . . . . . . . . . . . . . . . . . . 2 . . . . . Hack Defense % 1 | . . . 1 . . . . . . . . . . . . . . . . . . . . . . . . . . . . . . . . KI Resistance % 3 | . . . 1 . . . . . . . . . . . . . . . . . . . . . . . . . . . . . . . 2 TH Resistance % 3 | . . . 1 . . . . . . . . . . . . . . . . . . . . . . . . . . . . . 2 . . EX Resistance % 3 | . . . 1 . . . . . . . . . . . . . . . . . . . . . . . . . . . . . . . 2 KI Damage % 4 | . . . . . . . 4 . . . . . . . . . . . . . . . . . . . . . . . . . . . . Protomatter Created 35153 | . 382 125 519 . 119 171 630 700 660 174 . 328 410 3048 191 513 . 306 2628 383 301 5027 297 2191 324 286 . 347 . 455 1543 382 6248 937 5528 Integrity Restored 17321 | . 530 273 975 . 478 120 163 213 283 43 . 117 205 1195 35 149 . 98 1112 158 156 2357 41 1058 270 71 . 368 . 228 1092 124 3198 364 1847 Core 7754 | . 341 273 758 . 304 36 64 154 181 24 . 32 63 441 19 75 . 36 519 64 36 1060 . 347 76 . . 136 . 91 231 90 1312 65 926 Parts 9567 | . 189 . 217 . 174 84 99 59 102 19 . 85 142 754 16 74 . 62 593 94 120 1297 41 711 194 71 . 232 . 137 861 34 1886 299 921 Protomatter Decayed 22622 | . 118 75 111 . 5 119 431 722 442 159 . 226 318 1762 60 459 . 331 1940 326 210 2943 161 1428 303 249 . 139 . 326 1671 225 2862 574 3927 Game ------ Seed HeavyMicrowarpAnalyzer Manual? 0 Play Time 06:47:23 Cumulative 389.4 hours Start 2025.09.27 @ 12:09:25 End 2025.09.28 @ 09:23:49 Sessions 5 Manual Loads 0 Difficulty Adventurer Special Mode Winter2019/RPGLIKE Game No. 143 Rogue 0 Adventurer 143 Explorer 0 Win Type 7 Total 15 Types 2/3/3/3/1/0/0/1/1/1 Lore% 91 Gallery% 82 Achievement% 82 Wizard Run 0 Options --------- Layout 2 ASCII 0 Keyboard 0 Movement Numpad Keybinds 0 Fullscreen 2 Font 24/Smallcaps Map View 25x22 Zoom Use 0% Tactical HUD 1 Map Filters NONE Filters NONE Steam 1 RUN: ec6d3c65-c0b1-4503-a55b-2ab85c7abe0b